2CCN - Level 2 Cost Centre Name,,9CCN - Level 9 Cost Centre Name,9CCC - Level 9 Cost Centre Code,9AN - Level 9 Account Name,9AC - Level 9 Account Code,Transaction Description,Date Paid,Transaction Reference,Analysed Amount,2AC - Level 2 Account Codes,Supplier Name,Supplier Code
Gloucester City Council,23UE,Cctv Revenue Budget,FP501,Security Equipment Serv/Repair,3038,Community Safety: CCTV,01/05/2014,383287,11748.44,NET,Bt Redcare,04692U
Gloucester City Council,23UE,Cemeteries,HC300,"Seeds, Trees, Plants, Shrubs",3028,White Rose Bushes & standard rosees,01/05/2014,382590,169.88,NET,Highfield Garden Centres Ltd,48436C
Gloucester City Council,23UE,Client Revs & Bens Contract,RT240,Advertising And Publicity,5702,Adverts,01/05/2014,381985,348.6,NET,Local World Ltd,08556P
Gloucester City Council,23UE,Disabled Facilities Grants,CY013,Disabled Facility Grants,0074,REDACTED,01/05/2014,383023,4378,CAP,Novus Property Solutions,39955E
Gloucester City Council,23UE,Disabled Facilities Grants,CY013,Disabled Facility Grants,0074,REDACTED,01/05/2014,382274,4813,CAP,Pinetree (Gloucester) Ltd,53288Y
Gloucester City Council,23UE,Docks Complex - Catering Servs,RB110,Catering Provisions -Food,5110,Glos city Council: Jane's Pantry,01/05/2014,382604,104.76,NET,Janes Pantry,24500W
Gloucester City Council,23UE,Docks Complex - Catering Servs,RB110,Catering Provisions -Food,5110,Herbert: food,01/05/2014,382848,55.07,NET,Janes Pantry,24500W
Gloucester City Council,23UE,Docks Complex - Catering Servs,RB110,Catering Provisions -Food,5110,Herbert: food w/e 27/4/2014,01/05/2014,383129,60.31,NET,Janes Pantry,24500W
Gloucester City Council,23UE,Docks Complex - Services,RB100,General Repair/Maint Buildings,3000,Herbert Warehouse,01/05/2014,383232,700,NET,REDACTED,REDACTED
Gloucester City Council,23UE,Emergency Out Of Hours Calls,RB301,Fees For Services Received,5350,Calls,01/05/2014,381967,43.98,NET,Office Response,09439K
Gloucester City Council,23UE,Hillfield Gardens S106,LY112,Contract Payments,0020,wild flower seed mixtures,01/05/2014,383283,204,CAP,Wildflower Lawns And Meadows,14881B
Gloucester City Council,23UE,Homelessness,CH120,Fees For Services Received,5350,Housing provision of medical report,01/05/2014,383281,20.5,NET,Gloucester Health Access Centre,11611H
Gloucester City Council,23UE,Homelessness,CH120,Fees For Services Received,5350,Interpretation services (BSL),01/05/2014,383280,153.8,NET,Gloucestershire Deaf Association,55868C
Gloucester City Council,23UE,Homelessness,CH120,Removal And Storage Fees,5513,REDACTED,01/05/2014,383250,16.71,NET,Advanced Removals & Storage Ltd,57142R
Gloucester City Council,23UE,Homelessness,CH120,Removal And Storage Fees,5513,REDACTED,01/05/2014,383251,100.29,NET,Advanced Removals & Storage Ltd,57142R
Gloucester City Council,23UE,Homelessness,CH120,Rent In Advance,5516,REDACTED,01/05/2014,383309,432.76,NET,The Property Centre,09230R
Gloucester City Council,23UE,Homelessness Prevention,CH122,Fees For Services Received,5350,REDACTED,01/05/2014,383309,550,NET,The Property Centre,09230R
Gloucester City Council,23UE,Off Street Car Parks,PP110,Computer Software Maintenance,5427,DVLA enquiry service,01/05/2014,382345,78.8,NET,Chipside Ltd,06535T
Gloucester City Council,23UE,Off Street Car Parks,PP110,Computer Software Maintenance,5427,MiPermit cashless parking,01/05/2014,382337,508.92,NET,Chipside Ltd,06535T
Gloucester City Council,23UE,Off Street Car Parks,PP110,Computer Software Maintenance,5427,parking electronic season ticket.,01/05/2014,382346,1166.19,NET,Chipside Ltd,06535T
Gloucester City Council,23UE,Off Street Car Parks,PP110,Contracted Services,6970,Penalty Charge Notices,01/05/2014,381809,1165.45,NET,Patrol,09431C
Gloucester City Council,23UE,Tea Room,HC500,Other Minor Supplies Services,5590,Filter Cartridge,01/05/2014,383208,87.9,NET,Space Catering Equipment Ltd,42828RV
Gloucester City Council,23UE,Wake Room,HC501,Catering Provisions -Food,5110,Arbor: food,01/05/2014,382847,97.05,NET,Janes Pantry,24500W
Gloucester City Council,23UE,Aspire Admin Charges,LC105,Other Minor Income,9900,BAILIFF PAYMENTS 11/04/14,02/05/2014,383350,140.8,NET,Aspire Sports & Cultural Trust,08135V
Gloucester City Council,23UE,Blackfriars Priory,RY207,Contract Payments,0020,FOLDING CHAIR RETURNED TO SUPPLIER,02/05/2014,383371,112,CAP,Furniture@Work Ltd,01124U
Gloucester City Council,23UE,Blackfriars Priory,RY207,Contract Payments,0020,Removal costs for faulty furniture,02/05/2014,378885,40,CAP,Furniture@Work Ltd,01124U
Gloucester City Council,23UE,Business Transformation & Tech,RT700,Computer Software <5000,5425,Q-Flow,02/05/2014,383393,17615,NET,Q-Nomy,14828D
Gloucester City Council,23UE,Business Transformation & Tech,RT700,Computer Software Maintenance,5427,Annual License Charge,02/05/2014,382949,1150,NET,Northgate Information Solutions Uk Ltd,08982S
Gloucester City Council,23UE,Business Transformation & Tech,RT700,Computer Software Maintenance,5427,Annual Software Support,02/05/2014,382950,1263.94,NET,Northgate Information Solutions Uk Ltd,08982S
Gloucester City Council,23UE,Business Transformation & Tech,RT700,Computer Software Maintenance,5427,Sundry Debtors system server migration,02/05/2014,383125,3000,NET,Ash Information Systems Ltd,54890V
Gloucester City Council,23UE,Business Transformation & Tech,RT700,Internet Service Provider Fees,5429,Phone Charges,02/05/2014,383400,999,NET,Vodafone Ltd,11843H
Gloucester City Council,23UE,Business Transformation & Tech,RT700,Other Minor Supplies Services,5590,Thermal Roll,02/05/2014,383392,45,NET,Paperloop Consumables Ltd,14594B
Gloucester City Council,23UE,Civic Admin And Hospitality,RC210,Muniments And Regalia,5033,Civics: Pendant,02/05/2014,383291,3462.2,NET,Thomas Fattorini Ltd,14975J
Gloucester City Council,23UE,Civil Parking Enforcement,PT741,Basic Pay - Temporary Staff,2751,REDACTED,02/05/2014,383399,1920,NET,Unity Recruitment,14857S
Gloucester City Council,23UE,Civil Parking Enforcement,PT741,Fees For Services Received,5350,TEC Account,02/05/2014,383369,5000,NET,Traffic Enforcement Centre,09456K
Gloucester City Council,23UE,Civil Parking Enforcement,PT741,Pcn Charges,9450,REDACTED,02/05/2014,383368,25,NET,REDACTED,REDACTED
Gloucester City Council,23UE,Corporate Expenses,RC110,Subscriptions,5600,Funding Briefings,02/05/2014,383395,2495,NET,Lg Futures,11251S
Gloucester City Council,23UE,Countryside Unit,LP201,General Repair/Maint Buildings,3000,Countryside: Cylinder Key,02/05/2014,383346,10.68,NET,Gloucester Locksmiths,18160C
Gloucester City Council,23UE,Depot,PY109,Contract Payments,0020,eastern Ave Depot Bin: galvanized tubing,02/05/2014,383319,2800,CAP,Anderson Civil Engineering Uk Ltd,09083D
Gloucester City Council,23UE,Disabled Facilities Grants,CY013,Disabled Facility Grants,0074,REDACTED,02/05/2014,383323,6682.85,CAP,Davey's Building Maintenance,57010K
Gloucester City Council,23UE,Flooding And Drainage,HE306,Maint Of Grounds - General,3030,REDACTED,02/05/2014,381679,410,NET,Three Counties Drain Service,44033V
Gloucester City Council,23UE,Flooding And Drainage,HE306,Maint Of Grounds - General,3030,Linden Brook Project,02/05/2014,383027,4750,NET,Three Counties Drain Service,44033V
Gloucester City Council,23UE,Flooding And Drainage,HE306,Maint Of Grounds - General,3030,Tewksbury Road,02/05/2014,381680,200,NET,Three Counties Drain Service,44033V
Gloucester City Council,23UE,Flooding And Drainage,HE306,Maint Of Grounds - General,3030,Twyver at Barn Close,02/05/2014,382500,675,NET,Tcv T/A The Conservation Volunteers,55897V
Gloucester City Council,23UE,General Works Fund,RY203,Contract Payments,0020,Kemble Rd Garages additional items,02/05/2014,383324,112.5,CAP,Anderson Civil Engineering Uk Ltd,09083D
Gloucester City Council,23UE,Gis Development Work,RY555,Contract Payments,0020,REDACTED,02/05/2014,382487,1250,CAP,Badenoch & Clark,01536P
Gloucester City Council,23UE,Gloucester Events,HE310,Events,5952,Refund of Bond,02/05/2014,383378,1000,NET,REDACTED,REDACTED
Gloucester City Council,23UE,Herbert Reception Upgrade,RY201,Contract Payments,0020,Correx Boards,02/05/2014,383394,186,CAP,Squirty Ink,13834P
Gloucester City Council,23UE,Homelessness,CH120,Board And Lodging,5515,1 Night Stay,02/05/2014,383364,75,NET,REDACTED,REDACTED
Gloucester City Council,23UE,Homelessness,CH120,Board And Lodging,5515,REDACTED,02/05/2014,383356,1109.7,NET,Carbrey Housing Ltd,11098G
Gloucester City Council,23UE,Homelessness,CH120,Board And Lodging,5515,REDACTED,02/05/2014,383357,1598.12,NET,Carbrey Housing Ltd,11098G
Gloucester City Council,23UE,Homelessness,CH120,Board And Lodging,5515,REDACTED,02/05/2014,383351,4633.64,NET,REDACTED,REDACTED
Gloucester City Council,23UE,Homelessness,CH120,Board And Lodging,5515,REDACTED,02/05/2014,383317,245,NET,Connolly And Callaghan Ltd,07565Y
Gloucester City Council,23UE,Homelessness,CH120,Board And Lodging,5515,REDACTED,02/05/2014,383316,245,NET,Connolly And Callaghan Ltd,07565Y
Gloucester City Council,23UE,Homelessness,CH120,Board And Lodging,5515,REDACTED,02/05/2014,383315,245,NET,Connolly And Callaghan Ltd,07565Y
Gloucester City Council,23UE,Homelessness,CH120,Board And Lodging,5515,REDACTED,02/05/2014,383353,1556.87,NET,REDACTED,REDACTED
Gloucester City Council,23UE,Homelessness,CH120,Board And Lodging,5515,Payments,02/05/2014,383362,540,NET,REDACTED,REDACTED
Gloucester City Council,23UE,Homelessness,CH120,Board And Lodging,5515,REDACTED,02/05/2014,383355,627.71,NET,Kalmwood Ltd,08568G
Gloucester City Council,23UE,Homelessness,CH120,Board And Lodging,5515,REDACTED,02/05/2014,383354,1488.67,NET,Dorchester House Trust,12298D
Gloucester City Council,23UE,Homelessness,CH120,Board And Lodging,5515,various tenants,02/05/2014,383363,1952.93,NET,James Legge Property (Ltd),07844R
Gloucester City Council,23UE,Homelessness,CH120,Removal And Storage Fees,5513,REDACTED,02/05/2014,383310,308.57,NET,Advanced Removals & Storage Ltd,57142R
Gloucester City Council,23UE,Homelessness Prevention,CH122,Fees For Services Received,5350,Court Fees,02/05/2014,383407,175,NET,REDACTED,REDACTED
Gloucester City Council,23UE,Legal Services,RS200,Basic Pay - Temporary Staff,2751,REDACTED,02/05/2014,382865,299.62,NET,Premiere Employment Ltd,55468Z
Gloucester City Council,23UE,Off Street Car Parks,PP110,Fees For Services Received,5350,TEC Account,02/05/2014,383369,2000,NET,Traffic Enforcement Centre,09456K
Gloucester City Council,23UE,Off Street Car Parks,PP110,General Repair/Maint Buildings,3000,Road Lines,02/05/2014,383032,500,NET,Roadmark Ltd,37743T
Gloucester City Council,23UE,Rehousing,CH111,Fees For Services Received,5350,Housing: medical report,02/05/2014,383311,20.5,NET,Hadwen Medical Practice,59727U
Gloucester City Council,23UE,Rehousing,CH111,Fees For Services Received,5350,Housing: Medical report,02/05/2014,383318,20.5,NET,Quedgeley Medical Centre,04984B
Gloucester City Council,23UE,Tourism Marketing,LT100,Exhibits And Collections,5038,IC: Silk hanging basket,02/05/2014,383348,40,NET,Bow Bells,12609J
Gloucester City Council,23UE,Wake Room,HC501,Catering Provisions -Food,5110,"Arbor: coffee beans, syrup, cinnamon etc",02/05/2014,382343,157.11,NET,Caffeica Ltd,11923J
Gloucester City Council,23UE,Wake Room,HC501,Catering Provisions -Food,5110,Arbor: food w/e 27/4/14,02/05/2014,383128,157.92,NET,Janes Pantry,24500W
Gloucester City Council,23UE,REDACTED,REDACTED,REDACTED,REDACTED,REDACTED,02/05/2014,REDACTED,122.4,NET,REDACTED,REDACTED
Gloucester City Council,23UE,Aspire Admin Charges,LC105,Fees For Services Received,5350,2000 Aspire Debt recovery letters.,06/05/2014,382392,200,NET,Civica Uk Ltd,10841X
Gloucester City Council,23UE,Business Support,PT250,Fuel,4012,fuel 16/4/2014,06/05/2014,383182,186.86,NET,Allstar Business Solutions Ltd (Arval),06594A
Gloucester City Council,23UE,Business Support,PT250,Fuel,4012,fuel 23/4/2014,06/05/2014,383205,130.95,NET,Allstar Business Solutions Ltd (Arval),06594A
Gloucester City Council,23UE,Business Transformation & Tech,RT700,Computer Hardware Maintenance,5426,Scanners,06/05/2014,382864,11169.27,NET,Northgate Information Solutions Uk Ltd,08982S
Gloucester City Council,23UE,Car Parks,GY002,Contract Payments,0020,westgate car park: paint handrails,06/05/2014,382766,346.14,CAP,Rf Gardiner Limited,12299B
Gloucester City Council,23UE,Car Parks,GY002,Contract Payments,0020,Westgate st Car park hang backet bracket,06/05/2014,383187,49.56,CAP,Rf Gardiner Limited,12299B
Gloucester City Council,23UE,Civica Contract Revs & Bens,RT250,Contracted Services,6970,core Rev & Bens service for 1/6-30/6/14,06/05/2014,383479,138572.7,NET,Civica Uk Ltd,10841X
Gloucester City Council,23UE,Civic Admin And Hospitality,RC210,Gifts And Prizes,7150,Decanter sets,06/05/2014,383462,443.25,NET,Michael Virden Engraved Glass Ltd,13971C
Gloucester City Council,23UE,Council Streetcare Team,HI101,Maint Of Grounds - General,3030,aviation Gardens: re-erect fence,06/05/2014,383195,133.84,NET,Rf Gardiner Limited,12299B
Gloucester City Council,23UE,Council Streetcare Team,HI101,Maint Of Grounds - General,3030,Swiss Cottage: unblock toilet,06/05/2014,383196,76.32,NET,Rf Gardiner Limited,12299B
Gloucester City Council,23UE,Countryside Unit,LP201,General Repair/Maint Buildings,3000,Countryside unit: various lock related,06/05/2014,383347,80.95,NET,Gloucester Locksmiths,18160C
Gloucester City Council,23UE,Crematorium,HC200,General Repair/Maint Buildings,3000,Crem: redecoration of Arbor,06/05/2014,383085,1375.1,NET,Rf Gardiner Limited,12299B
Gloucester City Council,23UE,Crematorium,HC200,Memorial Plaques,5053,Plaque,06/05/2014,383377,64,NET,Steel & Stone (York),57204U
Gloucester City Council,23UE,Docks Complex - Castlemeads Cp,RB210,General Repair/Maint Buildings,3000,Castlemead Car park:Refix timbers&walkwa,06/05/2014,383189,165.55,NET,Rf Gardiner Limited,12299B
Gloucester City Council,23UE,Docks Complex - Castlemeads Cp,RB210,General Repair/Maint Buildings,3000,Castlemead car park: repair fence,06/05/2014,383477,185,NET,Rf Gardiner Limited,12299B
Gloucester City Council,23UE,Docks Complex - Services,RB100,Cleaning Materials,3600,The docks: Toliet cleaners etc,06/05/2014,383288,98.81,NET,Core Hygiene Ltd,03885P
Gloucester City Council,23UE,Docks Complex - Services,RB100,General Repair/Maint Buildings,3000,Herbert Wse: attend fault on floor box,06/05/2014,383198,34,NET,Rf Gardiner Limited,12299B
Gloucester City Council,23UE,Docks Complex - Services,RB100,General Repair/Maint Buildings,3000,Herbert Wse: attend faulty socket,06/05/2014,383184,131.64,NET,Rf Gardiner Limited,12299B
Gloucester City Council,23UE,Docks Complex - Services,RB100,General Repair/Maint Buildings,3000,Herbert Wse: check sockets on 2nd floor,06/05/2014,383193,64,NET,Rf Gardiner Limited,12299B
Gloucester City Council,23UE,Docks Complex - Services,RB100,General Repair/Maint Buildings,3000,Herbert Wse: isntall sockets in kitchen,06/05/2014,382763,128.4,NET,Rf Gardiner Limited,12299B
Gloucester City Council,23UE,Docks Complex - Services,RB100,General Repair/Maint Buildings,3000,herbert wse: supply lamps & starters,06/05/2014,383183,161.15,NET,Rf Gardiner Limited,12299B
Gloucester City Council,23UE,Electrical Investigatory Works,RY142,Contract Payments,0020,Kings Squ: check cables @ Golden Egg,06/05/2014,382829,71.2,CAP,Rf Gardiner Limited,12299B
Gloucester City Council,23UE,Electrical Investigatory Works,RY142,Contract Payments,0020,Various sites:Remedial works for wired,06/05/2014,383303,829.87,CAP,Rf Gardiner Limited,12299B
Gloucester City Council,23UE,Financial Services,RT200,Fees For Services Received,5350,ParkingBay suspend 5/12/13 outside Regal,06/05/2014,382606,25,NET,Gloucestershire County Council,18650D
Gloucester City Council,23UE,Financial Services,RT200,Fees For Services Received,5350,parking suspension Charge(wrongly charge,06/05/2014,383469,25,NET,Gloucestershire County Council,18650D
Gloucester City Council,23UE,Flooding And Drainage,HE306,Maint Of Grounds - General,3030,Lobleys Drive,06/05/2014,383214,1095,NET,Rj Contracting (Environmental) Ltd,07429H
Gloucester City Council,23UE,Flooding And Drainage,HE306,Maint Of Grounds - General,3030,Robinswood Hill,06/05/2014,383216,365,NET,Rj Contracting (Environmental) Ltd,07429H
Gloucester City Council,23UE,Flooding And Drainage,HE306,Maint Of Grounds - General,3030,Vulcan Way,06/05/2014,383218,250,NET,Rj Contracting (Environmental) Ltd,07429H
Gloucester City Council,23UE,General Works Fund,RY203,Capital General Repairs & Main,0013,guildhall: install emergency lights,06/05/2014,383299,1980,CAP,Rf Gardiner Limited,12299B
Gloucester City Council,23UE,Gloucester Guildhall,LA100,Cleaning Materials,3600,Guildhall soap,06/05/2014,383460,116.72,NET,Gpp Hygiene,06080P
Gloucester City Council,23UE,REDACTED,REDACTED,REDACTED,REDACTED,REDACTED,06/05/2014,REDACTED,100,NET,REDACTED,REDACTED
Gloucester City Council,23UE,REDACTED,REDACTED,REDACTED,REDACTED,REDACTED,06/05/2014,REDACTED,15.31,NET,REDACTED,REDACTED
Gloucester City Council,23UE,REDACTED,REDACTED,REDACTED,REDACTED,REDACTED,06/05/2014,REDACTED,1250,NET,REDACTED,REDACTED
Gloucester City Council,23UE,REDACTED,REDACTED,REDACTED,REDACTED,REDACTED,06/05/2014,REDACTED,519.67,NET,REDACTED,REDACTED
Gloucester City Council,23UE,REDACTED,REDACTED,REDACTED,REDACTED,REDACTED,06/05/2014,REDACTED,340,NET,REDACTED,REDACTED
Gloucester City Council,23UE,REDACTED,REDACTED,REDACTED,REDACTED,REDACTED,06/05/2014,REDACTED,230,NET,REDACTED,REDACTED
Gloucester City Council,23UE,Homelessness,CH120,Rent In Advance,5516,REDACTED,06/05/2014,383486,364.6,NET,Donaldson & Newman Ltd,66678G
Gloucester City Council,23UE,Investment Property,RB500,General Repair/Maint Buildings,3000,Bristol Rd Garages: fix roof sheets,06/05/2014,383192,51.84,NET,Rf Gardiner Limited,12299B
Gloucester City Council,23UE,Investment Property,RB500,General Repair/Maint Buildings,3000,City museum: cabinets & hand driers,06/05/2014,383298,438.65,NET,Rf Gardiner Limited,12299B
Gloucester City Council,23UE,Investment Property,RB500,General Repair/Maint Buildings,3000,citymuseum: recitify issues w soil pipe,06/05/2014,383186,188.31,NET,Rf Gardiner Limited,12299B
Gloucester City Council,23UE,Investment Property,RB500,General Repair/Maint Buildings,3000, City Museum: re-lamp light fitting,06/05/2014,382759,84.56,NET,Rf Gardiner Limited,12299B
Gloucester City Council,23UE,Investment Property,RB500,General Repair/Maint Buildings,3000,City Museum: to repair tap,06/05/2014,382832,57.24,NET,Rf Gardiner Limited,12299B
Gloucester City Council,23UE,Investment Property,RB500,General Repair/Maint Buildings,3000,Crem: attend fault on fly catcher,06/05/2014,382757,225.9,NET,Rf Gardiner Limited,12299B
Gloucester City Council,23UE,Investment Property,RB500,General Repair/Maint Buildings,3000,Crem: attend fault on water boiler,06/05/2014,382760,52.56,NET,Rf Gardiner Limited,12299B
Gloucester City Council,23UE,Investment Property,RB500,General Repair/Maint Buildings,3000,Crem: fix roof on arbor building,06/05/2014,382758,138.24,NET,Rf Gardiner Limited,12299B
Gloucester City Council,23UE,Investment Property,RB500,General Repair/Maint Buildings,3000,Crem: repair digilock,06/05/2014,382830,46.75,NET,Rf Gardiner Limited,12299B
Gloucester City Council,23UE,Investment Property,RB500,General Repair/Maint Buildings,3000,Eastgate Mkt: replace light fittings,06/05/2014,383180,210.62,NET,Rf Gardiner Limited,12299B
Gloucester City Council,23UE,Investment Property,RB500,General Repair/Maint Buildings,3000,Guildhall: lighting fault in cinema,06/05/2014,383297,80.41,NET,Rf Gardiner Limited,12299B
Gloucester City Council,23UE,Investment Property,RB500,General Repair/Maint Buildings,3000,Guildhall: plumbing,06/05/2014,383296,93.32,NET,Rf Gardiner Limited,12299B
Gloucester City Council,23UE,Investment Property,RB500,General Repair/Maint Buildings,3000,Mayor's Parlour: fix radiator,06/05/2014,382761,134.38,NET,Rf Gardiner Limited,12299B
Gloucester City Council,23UE,Investment Property,RB500,General Repair/Maint Buildings,3000,North Wse: supply & fit cabinet lock,06/05/2014,383304,66.91,NET,Rf Gardiner Limited,12299B
Gloucester City Council,23UE,Investment Property,RB500,General Repair/Maint Buildings,3000,N Warehse: 2 external light fittings,06/05/2014,382756,369.84,NET,Rf Gardiner Limited,12299B
Gloucester City Council,23UE,Investment Property,RB500,General Repair/Maint Buildings,3000,St Oswald Car Park: fabricate waterproof,06/05/2014,383302,111.4,NET,Rf Gardiner Limited,12299B
Gloucester City Council,23UE,Investment Property,RB500,Maint Of Grounds - General,3030,Oxtalls Tennis centre: repair potholes,06/05/2014,382755,94.12,NET,Rf Gardiner Limited,12299B
Gloucester City Council,23UE,Kings Quarter,RY146,Contract Payments,0020,Kings Squ: electrical works,06/05/2014,383190,3459.22,CAP,Rf Gardiner Limited,12299B
Gloucester City Council,23UE,Kings Sq Paving Emerg Works,RY161,Contract Payments,0020,Kings Sq: clean gulley's @ Jane's Pantry,06/05/2014,383191,34.56,CAP,Rf Gardiner Limited,12299B
Gloucester City Council,23UE,Land Searches,RO300,Fees For Services Received,5350,Land charges - searches - Jan-Mar14,06/05/2014,383470,7736.17,NET,Gloucestershire County Council,18650D
Gloucester City Council,23UE,Licences,HE510,Licences,9301,rEFUND OF NEW LOTTERY APPLICATION,06/05/2014,383485,40,NET,REDACTED,REDACTED
Gloucester City Council,23UE,Marchants,LT108,Materials For Sale,5080,Ticket Sales March 2014,06/05/2014,383220,2803,NET,Marchants Coaches Ltd,48151Y
Gloucester City Council,23UE,Netheridge Market,RY132,Contract Payments,0020,Kings Squ: check cables @ golden egg,06/05/2014,382831,141.7,CAP,Rf Gardiner Limited,12299B
Gloucester City Council,23UE,Northwarehouse,RB150,General Repair/Maint Buildings,3000,North warehse: fix door,06/05/2014,383206,51.84,NET,Rf Gardiner Limited,12299B
Gloucester City Council,23UE,Off Street Car Parks,PP110,General Repair/Maint Buildings,3000,Hampden Way Car park:repair potholes,06/05/2014,383301,2073.5,NET,Rf Gardiner Limited,12299B
Gloucester City Council,23UE,Off Street Car Parks,PP110,General Repair/Maint Buildings,3000,KingswalkCarPark -barrier&pothole repair,06/05/2014,382764,340,NET,Rf Gardiner Limited,12299B
Gloucester City Council,23UE,Off Street Car Parks,PP110,General Repair/Maint Buildings,3000,Kingswalk Car Park: barrier remove graff,06/05/2014,383476,216,NET,Rf Gardiner Limited,12299B
Gloucester City Council,23UE,Off Street Car Parks,PP110,General Repair/Maint Buildings,3000,Kings walk car park: board up window,06/05/2014,383194,25.92,NET,Rf Gardiner Limited,12299B
Gloucester City Council,23UE,Off Street Car Parks,PP110,General Repair/Maint Buildings,3000,Longsmith st car park: repair door/lock,06/05/2014,383200,25.92,NET,Rf Gardiner Limited,12299B
Gloucester City Council,23UE,Off Street Car Parks,PP110,General Repair/Maint Buildings,3000,Longsmith St Car Park: repairs as inspec,06/05/2014,383300,232,NET,Rf Gardiner Limited,12299B
Gloucester City Council,23UE,Off Street Car Parks,PP110,General Repair/Maint Buildings,3000,sinope St Car park - to repair post,06/05/2014,383185,675,NET,Rf Gardiner Limited,12299B
Gloucester City Council,23UE,Off Street Car Parks,PP110,General Repair/Maint Buildings,3000,Westgate car park: fix padlock,06/05/2014,382828,25.92,NET,Rf Gardiner Limited,12299B
Gloucester City Council,23UE,Off Street Car Parks,PP110,General Repair/Maint Buildings,3000,Westgate Car park: repair verge,06/05/2014,382765,112.56,NET,Rf Gardiner Limited,12299B
Gloucester City Council,23UE,Off Street Car Parks,PP110,General Repair/Maint Buildings,3000,Westgate St Car Park: reinstate timber,06/05/2014,383207,30,NET,Rf Gardiner Limited,12299B
Gloucester City Council,23UE,Other Flooding,RO103,Operational Equipment <5000,5012,Longford,06/05/2014,383217,230,NET,Rj Contracting (Environmental) Ltd,07429H
Gloucester City Council,23UE,Stationery Services,RS150,Stationery,5302,Stationary,06/05/2014,383390,67.48,NET,Lyreco Uk Ltd,11746G
Gloucester City Council,23UE,Stationery Services,RS150,Stationery,5302,Stationary,06/05/2014,383391,57.41,NET,Lyreco Uk Ltd,11746G
Gloucester City Council,23UE,Tea Room,HC500,Catering Provisions -Liquor,5111,Arbor: drink,06/05/2014,383461,8.58,NET,Cellar Supplies Cheltenham Ltd,01563L
Gloucester City Council,23UE,Tea Room,HC500,Catering Provisions -Liquor,5111,Arbor: drinks,06/05/2014,383456,58.94,NET,Cellar Supplies Cheltenham Ltd,01563L
Gloucester City Council,23UE,Tea Room,HC500,Catering Provisions -Liquor,5111,Arbor: drinks,06/05/2014,383457,187.76,NET,Cellar Supplies Cheltenham Ltd,01563L
Gloucester City Council,23UE,Tea Room,HC500,Catering Provisions -Liquor,5111,Arbor: drinks,06/05/2014,383480,17.56,NET,Cellar Supplies Cheltenham Ltd,01563L
Gloucester City Council,23UE,The Fleece,RB530,General Repair/Maint Buildings,3000,11A westgate St: pigeon issues,06/05/2014,382762,84.12,NET,Rf Gardiner Limited,12299B
Gloucester City Council,23UE,The Fleece,RB530,General Repair/Maint Buildings,3000,glos music academy: fix roof tile,06/05/2014,383188,34.56,NET,Rf Gardiner Limited,12299B
Gloucester City Council,23UE,The Fleece,RB530,General Repair/Maint Buildings,3000,Glos Music academy: replace fire doors,06/05/2014,383199,625,NET,Rf Gardiner Limited,12299B
Gloucester City Council,23UE,Ugly Structures,GY010,Contract Payments,0020,city Facades - prep of computer images,06/05/2014,383088,2950,CAP,Astam G.B.C. Consultancy Ltd,55027L
Gloucester City Council,23UE,Wake Room,HC501,Catering Provisions -Food,5110,Food,06/05/2014,383382,113,NET,3663,55585U
Gloucester City Council,23UE,Wake Room,HC501,Catering Provisions -Food,5110,Food,06/05/2014,383383,122.89,NET,3663,55585U
Gloucester City Council,23UE,Wake Room,HC501,Catering Provisions -Food,5110,Food,06/05/2014,383384,11.72,NET,Total Produce Gloucester,12645E
Gloucester City Council,23UE,Wake Room,HC501,Catering Provisions -Food,5110,Food,06/05/2014,383385,20.44,NET,Total Produce Gloucester,12645E
Gloucester City Council,23UE,Wake Room,HC501,Catering Provisions -Food,5110,Food,06/05/2014,383386,30.97,NET,Total Produce Gloucester,12645E
Gloucester City Council,23UE,Wake Room,HC501,Catering Provisions -Food,5110,Food,06/05/2014,383387,36.75,NET,Total Produce Gloucester,12645E
Gloucester City Council,23UE,Wake Room,HC501,Catering Provisions -Food,5110,Food,06/05/2014,383388,27.04,NET,Total Produce Gloucester,12645E
Gloucester City Council,23UE,Wake Room,HC501,Catering Provisions -Food,5110,Food,06/05/2014,383389,22.44,NET,Total Produce Gloucester,12645E
Gloucester City Council,23UE,Wake Room,HC501,Catering Provisions -Food,5110,Food,06/05/2014,383405,272.64,NET,3663,55585U
Gloucester City Council,23UE,Wake Room,HC501,Catering Provisions -Food,5110,Food,06/05/2014,383406,33.12,NET,3663,55585U
Gloucester City Council,23UE,Wake Room,HC501,Cleaning Materials,3600,Food,06/05/2014,383404,65.78,NET,3663,55585U
Gloucester City Council,23UE,Wake Room,HC501,Other Minor Supplies Services,5590,flowers,06/05/2014,383465,25.6,NET,Carols Fruit & Flower Basket,01274X
Gloucester City Council,23UE,Website Rebuild,RY573,Consultants Fees,0030,3 days daily rate,06/05/2014,383464,760.2,CAP,Patzone It Solutions Ltd,13059R
Gloucester City Council,23UE,Asset Management,RS300,Basic Pay - Temporary Staff,2751,REDACTED,07/05/2014,383204,1247.41,NET,Hays Specialist Recruitment Ltd,55516P
Gloucester City Council,23UE,Building Control,PT400,Basic Pay - Temporary Staff,2751,REDACTED,07/05/2014,381165,3833.5,NET,Brg Interim Solutions,14065L
Gloucester City Council,23UE,Building Control,PT400,Fees For Services Received,5350,Build regs: 2 locations,07/05/2014,383017,135,NET,Bath & North East Somerset District Council,57875R
Gloucester City Council,23UE,Car Parks,GY002,Contract Payments,0020,Westgate St Car Park - surfacing,07/05/2014,382947,5262,CAP,Abbey Surfacing,03487G
Gloucester City Council,23UE,Depot,PY109,Contract Payments,0020,EasternAve depot construct hard standing,07/05/2014,383197,39009.6,CAP,Rf Gardiner Limited,12299B
Gloucester City Council,23UE,Docks Complex - Services,RB100,Fire Alarm Maintenance,3053,Engineers attend 24/4/14,07/05/2014,383295,181.6,NET,Adt Fire & Security Plc,54086D
Gloucester City Council,23UE,Financial Services,RT200,Consultants Fees,5349,REDACTED,07/05/2014,383222,1740,NET,Robert Half Ltd,03959K
Gloucester City Council,23UE,Gl1 Emergency Works,RY160,Contract Payments,0020,GL1 leisure centre - retention Invoice,07/05/2014,380986,2858.67,CAP,Central Roofing & Building Services Ltd,59480W
Gloucester City Council,23UE,Gl1 Emergency Works,RY160,Contract Payments,0020,GL1 single ply repairs,07/05/2014,383136,4735.33,CAP,Central Roofing & Building Services Ltd,59480W
Gloucester City Council,23UE,Guildhall Bar And Caf�,LA210,Operational Equipment <5000,5012,Fridge,07/05/2014,383231,930,NET,Mjs Catering Equipment,57425Z
Gloucester City Council,23UE,Guildhall Bar And Caf�,LA210,Other Catering Provisions,5112,guildhall: gases,07/05/2014,383472,42.21,NET,Boc Ltd,59172L
Gloucester City Council,23UE,Investment Property,RB500,Consultants Fees,5349,50% reclaim on CHP report for GL1,07/05/2014,382779,345,NET,Aspire Sports & Cultural Trust,08135V
Gloucester City Council,23UE,Investment Property,RB500,General Repair/Maint Buildings,3000,GL1 Leisure centre attendance,07/05/2014,381959,156.75,NET,Allegion (Uk) Ltd*,06444X
Gloucester City Council,23UE,Investment Property,RB500,Repair/Maint Of Fixed Plant,3006,Blackfriars Priory: Boiler working again,07/05/2014,382482,405.26,NET,Hewer Facilities Mgt Ltd,05232A
Gloucester City Council,23UE,Kings Quarter,RY146,Legal/Survey Fees -Land,0002,TO CORRECT CIS,07/05/2014,383562,36044.9,CAP,Wye Valley Demolition Ltd,07242C
Gloucester City Council,23UE,Retail Market - Landlord,HM300,Cleaning / Domestic Equipment,5011,Eastgate Market: 4 Cabinets,07/05/2014,381275,18.05,NET,Initial Washroom Solutions,06143R
Gloucester City Council,23UE,Retail Market - Landlord,HM300,Trade Refuse Collection,3630,Waste collection,07/05/2014,383478,120,NET,B & S Pointon Ltd,06253G
Gloucester City Council,23UE,Tic Theatre Ticket Sales,LT107,Materials For Sale,5080,Ticket Sales 'Emily',07/05/2014,383561,180,NET,REDACTED,REDACTED
Gloucester City Council,23UE,Tic Theatre Ticket Sales,LT107,Other Minor Income,9900,Ticket Sales 'Emily',07/05/2014,383561,-5.21,NET,REDACTED,REDACTED
Gloucester City Council,23UE,Tic Theatre Ticket Sales,LT107,Sale Of Goods And Services,9230,Ticket Sales 'Emily',07/05/2014,383561,-15,NET,REDACTED,REDACTED
Gloucester City Council,23UE,Treasury Management,VR110,Planning Direct Action,5347,MAR/APR14 charges for prof services,07/05/2014,382088,5960.8,NET,Capita Business Services Limited*,54095C
Gloucester City Council,23UE,REDACTED,REDACTED,REDACTED,REDACTED,REDACTED,07/05/2014,REDACTED,88.83,NET,REDACTED,REDACTED
Gloucester City Council,23UE,REDACTED,REDACTED,REDACTED,REDACTED,REDACTED,07/05/2014,REDACTED,174.25,NET,REDACTED,REDACTED
Gloucester City Council,23UE,REDACTED,REDACTED,REDACTED,REDACTED,REDACTED,07/05/2014,REDACTED,504.05,NET,REDACTED,REDACTED
Gloucester City Council,23UE,REDACTED,REDACTED,REDACTED,REDACTED,REDACTED,07/05/2014,REDACTED,72.25,NET,REDACTED,REDACTED
Gloucester City Council,23UE,REDACTED,REDACTED,REDACTED,REDACTED,REDACTED,07/05/2014,REDACTED,221,NET,REDACTED,REDACTED
Gloucester City Council,23UE,REDACTED,REDACTED,REDACTED,REDACTED,REDACTED,07/05/2014,REDACTED,267.75,NET,REDACTED,REDACTED
Gloucester City Council,23UE,Kings Quarter,RY146,Legal/Survey Fees -Land,0002,TO CORRECT CIS ERROR,07/05/2014,383525,36044.9,CAP,Wye Valley Demolition Ltd,07242C
Gloucester City Council,23UE,Asset Management,RS300,Vocational Training,2970,Commercial Property Law Update 2014,08/05/2014,383526,238,NET,Professional Conferences,56296V
Gloucester City Council,23UE,Business Transformation & Tech,RT700,Computer Hardware <5000,5420,B&T: Installation of CCTV system,08/05/2014,383314,4999,NET,Asguk (Systems) Ltd,07167R
Gloucester City Council,23UE,Cemeteries,HC300,Operational Materials,5070,Toilet Rolls,08/05/2014,383396,66.06,NET,Safpro Industrial Supply Co,39190W
Gloucester City Council,23UE,City Museum Catering,LM202,Catering Provisions -Food,5110,40 Glos Sausages,08/05/2014,380106,28,NET,Farmhouse Cooked Meats Ltd,01217R
Gloucester City Council,23UE,City Museum Catering,LM202,Catering Provisions -Liquor,5111,Food,08/05/2014,382521,84.64,NET,Woody's Fruit & Veg,11798L
Gloucester City Council,23UE,City Museum Catering,LM202,Operational Equipment <5000,5012,Machine Rental,08/05/2014,382520,135,NET,La Spaziale Uk Ltd,11823P
Gloucester City Council,23UE,Community Safety Projects,FP500,Basic Pay -Admin /Prof Staff,2601,REDACTED,08/05/2014,383239,444.34,NET,Travail Employment Ltd,49371W
Gloucester City Council,23UE,Contact Centre,RB300,Printing,5300,PRINTING,08/05/2014,373981,21,NET,Service Point Uk Ltd*,58885Y
Gloucester City Council,23UE,Crematorium,HC200,Repair/Maint Of Monuments,3004,REDACTED,08/05/2014,383284,97.5,NET,The Columbaria Company,55078T
Gloucester City Council,23UE,Crematorium,HC200,"Seeds, Trees, Plants, Shrubs",3028,Standard rose,08/05/2014,383466,29.99,NET,Highfield Garden Centres Ltd,48436C
Gloucester City Council,23UE,Development Management,PT200,Microfilming / Cd-Rom Storage,5330,"achive storage, scan & email",08/05/2014,382393,48.28,NET,Transmedia Technology Ltd,08635T
Gloucester City Council,23UE,Docks Complex - Services,RB100,Operational Equipment <5000,5012,BT&T:  1K byte card,08/05/2014,383312,108.5,NET,Bannerbridge Plc,13703G
Gloucester City Council,23UE,Docks Complex - Services,RB100,Operational Equipment <5000,5012,TV License,08/05/2014,382817,145.5,NET,Tv Licensing,32680R
Gloucester City Council,23UE,Farmers Market,HM400,Fees For Services Received,5350,ADVERT 05/03/14,08/05/2014,380375,116.86,NET,Local World Ltd,08556P
Gloucester City Council,23UE,Financial Services,RT200,Fees For Services Received,5350,CREDITED ON 91921823,08/05/2014,383589,578.5,NET,Service Point Uk Ltd*,58885Y
Gloucester City Council,23UE,Guildhall Bar And Caf�,LA210,Basic Pay - Duty Assistants,1511,Food,08/05/2014,382620,119.66,NET,Woody's Fruit & Veg,11798L
Gloucester City Council,23UE,Guildhall Bar And Caf�,LA210,Catering Provisions -Food,5110,Guildhall: food,08/05/2014,381910,56,NET,Janes Pantry,24500W
Gloucester City Council,23UE,Guildhall Bar And Caf�,LA210,Catering Provisions -Food,5110,Guildhall: JANES PANTRY w/e 23/3/14,08/05/2014,381234,44.45,NET,Janes Pantry,24500W
Gloucester City Council,23UE,REDACTED,REDACTED,REDACTED,REDACTED,REDACTED,08/05/2014,REDACTED,500,NET,REDACTED,REDACTED
Gloucester City Council,23UE,Herbert Reception Upgrade,RY201,Contract Payments,0020,Chairs for reception,08/05/2014,382857,1350,CAP,The Furniture Recycling Project,05542F
Gloucester City Council,23UE,Homelessness,CH120,Rent In Advance,5516,REDACTED,08/05/2014,383592,364.6,NET,2 Let Glos Ltd,07066Y
Gloucester City Council,23UE,Homelessness,CH120,Rent In Advance,5516,REDACTED,08/05/2014,383594,270,NET,REDACTED,REDACTED
Gloucester City Council,23UE,Homelessness,CH120,Rent In Advance,5516,REDACTED,08/05/2014,383595,270,NET,REDACTED,REDACTED
Gloucester City Council,23UE,Homelessness,CH120,Rent In Advance,5516,REDACTED,08/05/2014,383591,481.72,NET,REDACTED,REDACTED
Gloucester City Council,23UE,Homelessness Prevention,CH122,Fees For Services Received,5350,REDACTED,08/05/2014,383592,425,NET,2 Let Glos Ltd,07066Y
Gloucester City Council,23UE,Homelessness Prevention,CH122,Fees For Services Received,5350,REDACTED,08/05/2014,383591,500,NET,REDACTED,REDACTED
Gloucester City Council,23UE,Housing Strategy & Enabling,CH110,Printing,5300,PRINTING,08/05/2014,373981,42,NET,Service Point Uk Ltd*,58885Y
Gloucester City Council,23UE,Legal Services,RS200,Basic Pay - Temporary Staff,2751,REDACTED,08/05/2014,383228,196.24,NET,Premiere Employment Ltd,55468Z
Gloucester City Council,23UE,Legal Services,RS200,Basic Pay - Temporary Staff,2751,REDACTED,08/05/2014,383209,1269.32,NET,Venn Group Ltd,04339P
Gloucester City Council,23UE,Pollution Control,HE300,Fees For Services Received,5350,Environ: survey for Allstones monitoring,08/05/2014,383285,400,NET,Dustscan Ltd,03448T
Gloucester City Council,23UE,Printing,RP103,Fees For Services Received,5350,Posters,08/05/2014,382497,105,NET,Service Point Uk Ltd*,58885Y
Gloucester City Council,23UE,Printing,RP103,Printing,5300,PRINTING,08/05/2014,373981,760,NET,Service Point Uk Ltd*,58885Y
Gloucester City Council,23UE,Rehousing,CH111,Basic Pay - Temporary Staff,2751,REDACTED,08/05/2014,382705,507.4,NET,One To One Recruitment,04752H
Gloucester City Council,23UE,Rehousing,CH111,Basic Pay - Temporary Staff,2751,REDACTED,08/05/2014,383035,442.5,NET,One To One Recruitment,04752H
Gloucester City Council,23UE,Asset Management,RS300,Basic Pay - Temporary Staff,2751,Consultancy Services,09/05/2014,383600,6800,NET,Ardley Associates,09369F
Gloucester City Council,23UE,Blackfriars Catering,LA220,Catering Provisions -Liquor,5111,TUMBLER,09/05/2014,383672,54.5,NET,Gerry Dance Disposables Ltd,54579Y
Gloucester City Council,23UE,Business Transformation & Tech,RT700,Basic Pay - Temporary Staff,2751,Consultancy Services,09/05/2014,383550,600,NET,Ffox Software Ltd,10665T
Gloucester City Council,23UE,Business Transformation & Tech,RT700,Security Testing - Govt Connec,5446,IT HEALTH CHECK,09/05/2014,383673,2100,NET,Randomstorm,09070N
Gloucester City Council,23UE,Cemeteries,HC300,Basic Pay - Temporary Staff,2751,staff to 02/05/14,09/05/2014,383602,1381.38,NET,Anderson Recruitment Ltd,14646H
Gloucester City Council,23UE,Cemeteries,HC300,Basic Pay - Temporary Staff,2751,staff to 04/04/14,09/05/2014,383608,926.9,NET,Anderson Recruitment Ltd,14646H
Gloucester City Council,23UE,Cemeteries,HC300,Trade Refuse Tipping Fees,6297,CALL OUT,09/05/2014,383749,298.57,NET,Facultatieve Technologies Ltd,51210H
Gloucester City Council,23UE,City Museum Catering,LM202,Catering Provisions -Food,5110,DRINK,09/05/2014,381942,84.25,NET,James Gourmet Coffee Co.,55049A
Gloucester City Council,23UE,City Museum Catering,LM202,Catering Provisions -Food,5110,FOOD,09/05/2014,383674,4.96,NET,Total Produce Gloucester,12645E
Gloucester City Council,23UE,City Museum Catering,LM202,Catering Provisions -Food,5110,FOOD,09/05/2014,383691,127.43,NET,Woodward Foodservice,10714F
Gloucester City Council,23UE,City Museum Catering,LM202,Catering Provisions -Food,5110,FOOD,09/05/2014,383701,7.44,NET,Total Produce Gloucester,12645E
Gloucester City Council,23UE,City Museum Catering,LM202,Catering Provisions -Food,5110,FOOD,09/05/2014,383702,7.44,NET,Total Produce Gloucester,12645E
Gloucester City Council,23UE,City Museum Catering,LM202,Catering Provisions -Food,5110,FOOD,09/05/2014,383706,4.96,NET,Total Produce Gloucester,12645E
Gloucester City Council,23UE,City Museum Catering,LM202,Catering Provisions -Food,5110,FOOD,09/05/2014,383707,6.2,NET,Total Produce Gloucester,12645E
Gloucester City Council,23UE,City Museum Catering,LM202,Catering Provisions -Food,5110,FOOD,09/05/2014,383708,6.2,NET,Total Produce Gloucester,12645E
Gloucester City Council,23UE,City Museum Catering,LM202,Catering Provisions -Food,5110,FOOD,09/05/2014,383709,7.44,NET,Total Produce Gloucester,12645E
Gloucester City Council,23UE,City Museum Catering,LM202,Catering Provisions -Food,5110,FOOD,09/05/2014,383721,6.2,NET,Total Produce Gloucester,12645E
Gloucester City Council,23UE,City Museum Catering,LM202,Catering Provisions -Food,5110,FOOD,09/05/2014,383722,6.2,NET,Total Produce Gloucester,12645E
Gloucester City Council,23UE,City Museum Catering,LM202,Catering Provisions -Food,5110,FOOD,09/05/2014,383754,94.49,NET,Woodward Foodservice,10714F
Gloucester City Council,23UE,City Museum Catering,LM202,Catering Provisions -Food,5110,FOOD,09/05/2014,383755,174.31,NET,Woodward Foodservice,10714F
Gloucester City Council,23UE,Community Safety Projects,FP500,Other Minor Supplies Services,5590,Training Events,09/05/2014,383599,300,NET,Red Snapper Learning Ltd,14848X
Gloucester City Council,23UE,Council Streetcare Team,HI101,Operational Equipment <5000,5012,Padlocks,09/05/2014,383534,159.5,NET,London Tools Ltd,13538X
Gloucester City Council,23UE,Gloucester Guildhall,LA100,Security Services Fees,5351,Door Staff Guildhall,09/05/2014,383529,1474.25,NET,Nsgl Ltd,12539E
Gloucester City Council,23UE,Guildhall Bar And Caf�,LA210,Catering Provisions -Food,5110,FOOD,09/05/2014,383675,45,NET,Winstones Ice Cream Ltd,56347D
Gloucester City Council,23UE,Guildhall Bar And Caf�,LA210,Catering Provisions -Food,5110,FOOD,09/05/2014,383756,152.54,NET,Woodward Foodservice,10714F
Gloucester City Council,23UE,Guildhall Bar And Caf�,LA210,Catering Provisions -Food,5110,FOOD,09/05/2014,383758,128.51,NET,Woodward Foodservice,10714F
Gloucester City Council,23UE,Guildhall Bar And Caf�,LA210,Catering Provisions -Liquor,5111,DRINK,09/05/2014,383669,1162.95,NET,Cellar Supplies Cheltenham Ltd,01563L
Gloucester City Council,23UE,Guildhall Bar And Caf�,LA210,Catering Provisions -Liquor,5111,DRINK,09/05/2014,383670,240.87,NET,Cellar Supplies Cheltenham Ltd,01563L
Gloucester City Council,23UE,Guildhall Bar And Caf�,LA210,Catering Provisions -Liquor,5111,DRINK,09/05/2014,383671,246.06,NET,Cellar Supplies Cheltenham Ltd,01563L
Gloucester City Council,23UE,REDACTED,REDACTED,REDACTED,REDACTED,REDACTED,09/05/2014,REDACTED,100,NET,REDACTED,REDACTED
Gloucester City Council,23UE,Homelessness,CH120,Board And Lodging,5515,1 night accomodation,09/05/2014,383546,49,NET,The Yew Tree Inn,13343R
Gloucester City Council,23UE,Homelessness,CH120,Board And Lodging,5515,2 nights accommodation,09/05/2014,383547,78,NET,The Yew Tree Inn,13343R
Gloucester City Council,23UE,Homelessness,CH120,Board And Lodging,5515,3 nights B&B,09/05/2014,383545,134.85,NET,The Yew Tree Inn,13343R
Gloucester City Council,23UE,Homelessness,CH120,Fees For Services Received,5350,Provision of BSL interpreter services,09/05/2014,383549,130.9,NET,Gloucestershire Deaf Association,55868C
Gloucester City Council,23UE,Homelessness,CH120,Removal And Storage Fees,5513,Storage Charges April 14,09/05/2014,383544,456.43,NET,Advanced Removals & Storage Ltd,57142R
Gloucester City Council,23UE,Homelessness,CH120,Rent In Advance,5516,REDACTED,09/05/2014,383762,323.08,NET,Grosvenor Residential Lettings,14165F
Gloucester City Council,23UE,Homelessness,CH120,Rent In Advance,5516,REDACTED,09/05/2014,383761,733.84,NET,Tj Properties,14666B
Gloucester City Council,23UE,Homelessness Prevention,CH122,Fees For Services Received,5350,REDACTED,09/05/2014,383762,450,NET,Grosvenor Residential Lettings,14165F
Gloucester City Council,23UE,Homelessness Prevention,CH122,Fees For Services Received,5350,REDACTED,09/05/2014,383761,650,NET,Tj Properties,14666B
Gloucester City Council,23UE,Investment Property,RB500,Fire Alarm Maintenance,3053,Alarm System Maintenance,09/05/2014,383530,58.75,NET,Adt Fire & Security Plc,54086D
Gloucester City Council,23UE,Nms Contract,HI102,Contracted Services,6970,Enterprise pensions March 2014,09/05/2014,382851,9418.03,NET,Enterprise (Aol) Ltd,06695G
Gloucester City Council,23UE,Pest Control,HD400,Fees For Services Received,5350,Pest Control,09/05/2014,383597,253.32,NET,Falconry Services Ltd,10692P
Gloucester City Council,23UE,Pollution Control,HE300,Fees For Services Received,5350,EHN online,09/05/2014,383459,700,NET,Chartered Institute Of Environmental Health,24227R
Gloucester City Council,23UE,Rehousing,CH111,Fees For Services Received,5350,Homelessness medical report,09/05/2014,383548,20.5,NET,Gloucester City Health Centre,02093U
Gloucester City Council,23UE,Shopmobility,PE200,Cleaning Materials,3600,Shopmobility: waste,09/05/2014,383458,7.11,NET,Ocs Group Uk Limited T/A Cannon,06506A
Gloucester City Council,23UE,Stationery Services,RS150,Stationery,5302,STATIONERY,09/05/2014,383668,0.96,NET,Lyreco Uk Ltd,11746G
Gloucester City Council,23UE,Allotments,HI104,Fees For Services Received,5350,fencing Escourt close & Plock court,12/05/2014,382037,3162.5,NET,Greenfields Garden Services Ltd,48130G
Gloucester City Council,23UE,Asset Management,RS300,Subscriptions,5600,Annual Return Fee,12/05/2014,381580,465,NET,Rics Membership,11457T
Gloucester City Council,23UE,Building Control,PT400,Fees For Services Received,5350,22 Oxford St:roof repairs,12/05/2014,382113,200,NET,King Builders (Gloucester) Ltd,25810S
Gloucester City Council,23UE,Business Transformation & Tech,RT700,Basic Pay - Temporary Staff,2751,REDACTED,12/05/2014,383791,401,NET,Vector Resourcing Ltd,11664K
Gloucester City Council,23UE,Business Transformation & Tech,RT700,Basic Pay - Temporary Staff,2751,REDACTED,12/05/2014,383752,4000,NET,Vector Resourcing Ltd,11664K
Gloucester City Council,23UE,Business Transformation & Tech,RT700,Computer Hardware <5000,5420,SHELF,12/05/2014,383700,516.58,NET,Chase Resources Ltd,13823V
Gloucester City Council,23UE,Cemeteries,HC300,Maint Of Grounds - General,3030,CEMENT BAGS,12/05/2014,383699,50,NET,Allstone Sand & Gravel Aggregates Ltd,00940M
Gloucester City Council,23UE,Cemeteries,HC300,Routine R And M - Vehicles,4011,SERVICE,12/05/2014,383716,45,NET,Garden Machinery Gloucester,55641K
Gloucester City Council,23UE,Cemeteries,HC300,Trade Refuse Tipping Fees,6297,DUMPER HIRE,12/05/2014,383703,380,NET,Allstone Sand & Gravel Aggregates Ltd,00940M
Gloucester City Council,23UE,Cemeteries,HC300,Trade Refuse Tipping Fees,6297,THERMOCOUPLE,12/05/2014,383687,424.62,NET,Facultatieve Technologies Ltd,51210H
Gloucester City Council,23UE,Cemeteries,HC300,Trade Refuse Tipping Fees,6297,WASTE,12/05/2014,383692,405,NET,Allstone Sand & Gravel Aggregates Ltd,00940M
Gloucester City Council,23UE,Cemeteries,HC300,Trade Refuse Tipping Fees,6297,WASTE,12/05/2014,383693,360,NET,Allstone Sand & Gravel Aggregates Ltd,00940M
Gloucester City Council,23UE,City Museum Catering,LM202,Catering Provisions -Food,5110,Food,12/05/2014,382532,332.88,NET,Woodward Foodservice,10714F
Gloucester City Council,23UE,City Museum Catering,LM202,Catering Provisions -Food,5110,FOOD,12/05/2014,383710,4.96,NET,Total Produce Gloucester,12645E
Gloucester City Council,23UE,City Museum Catering,LM202,Catering Provisions -Food,5110,FOOD,12/05/2014,383711,4.96,NET,Total Produce Gloucester,12645E
Gloucester City Council,23UE,Civil Parking Enforcement,PT741,Pcn Charges,9450,Parking Refund,12/05/2014,383793,70,NET,REDACTED,REDACTED
Gloucester City Council,23UE,Contact Centre,RB300,Basic Pay -Admin /Prof Staff,2601,Temporary Staff w/e 06/04/2014,12/05/2014,382533,1556.6,NET,One To One Recruitment,04752H
Gloucester City Council,23UE,Contact Centre,RB300,Basic Pay -Admin /Prof Staff,2601,Temporary Staff w/e 11/04/2014,12/05/2014,382706,1639.54,NET,One To One Recruitment,04752H
Gloucester City Council,23UE,Contact Centre,RB300,Basic Pay -Admin /Prof Staff,2601,Temporary Staff w/e 25/04/2014,12/05/2014,383397,1151.78,NET,One To One Recruitment,04752H
Gloucester City Council,23UE,Countryside Unit,LP201,General Repair/Maint Buildings,3000,HARDWARE,12/05/2014,383719,19.96,NET,B&Q Trade Account,06346Y
Gloucester City Council,23UE,Countryside Unit,LP201,Maint Of Grounds - General,3030,HARDWARE,12/05/2014,383718,103.19,NET,Screwfix Direct*,54672H
Gloucester City Council,23UE,Crematorium,HC200,Equipment For Sale,5050,PLAQUE,12/05/2014,383713,54,NET,Arkell & Hurcombe,59812T
Gloucester City Council,23UE,Crematorium,HC200,Memorial Plaques,5053,PLAQUE,12/05/2014,383712,48,NET,Arkell & Hurcombe,59812T
Gloucester City Council,23UE,Crematorium,HC200,Memorial Plaques,5053,PLAQUE,12/05/2014,383714,288,NET,Arkell & Hurcombe,59812T
Gloucester City Council,23UE,Crematorium,HC200,Memorial Plaques,5053,PLAQUES,12/05/2014,383723,462,NET,Arkell & Hurcombe,59812T
Gloucester City Council,23UE,Crematorium,HC200,Repair/Maint Of Fixed Plant,3006,Wake Room/Chapel,12/05/2014,383531,450,NET,Zagota Creations,03211D
Gloucester City Council,23UE,Director Resources,MR102,Fees For Services Received,5350,REDACTED,12/05/2014,383741,347.77,NET,Wragge & Co Llp,06590J
Gloucester City Council,23UE,Director Resources,MR102,Fees For Services Received,5350,REDACTED,12/05/2014,383743,11644.05,NET,Wragge & Co Llp,06590J
Gloucester City Council,23UE,Director Resources,MR102,Fees For Services Received,5350,REDACTED,12/05/2014,383742,10237.35,NET,Wragge & Co Llp,06590J
Gloucester City Council,23UE,Director Resources,MR102,Fees For Services Received,5350,REDACTED,12/05/2014,383744,11470.65,NET,Wragge & Co Llp,06590J
Gloucester City Council,23UE,Disabled Facilities Grants,CY013,Disabled Facility Grants,0074,REDACTED,12/05/2014,383760,4438,CAP,Beechwood Maintenance Ltd,14182P
Gloucester City Council,23UE,Disabled Facilities Grants,CY013,Disabled Facility Grants,0074,REDACTED,12/05/2014,382275,4863.27,CAP,Snape Construction Ltd,40958T
Gloucester City Council,23UE,Disabled Facilities Grants,CY013,Disabled Facility Grants,0074,REDACTED,12/05/2014,383794,4342.18,CAP,Mears Home Improvement Ltd,00096G
Gloucester City Council,23UE,Disabled Facilities Grants,CY013,Energy Effic Landlord Accred,0078,warm & well plus,12/05/2014,383704,10000,CAP,Severn Wye Energy Agency Ltd,56930P
Gloucester City Council,23UE,Docks Complex - Services,RB100,Cleaning Materials,3600,The docks: Prink lotion,12/05/2014,383482,19.56,NET,Core Hygiene Ltd,03885P
Gloucester City Council,23UE,Docks Complex - Services,RB100,Repair/Maint Of Fixed Plant,3006,Maintenance 1/5/14 to 25/5/14,12/05/2014,383475,556.21,NET,Gea Denco Ltd,57271C
Gloucester City Council,23UE,Electrical Investigatory Works,RY142,Capital General Repairs & Main,0013,fixed installation testing HKP,12/05/2014,380324,4905,CAP,Guardian Electrical Solutions Ltd,12787D
Gloucester City Council,23UE,Electrical Investigatory Works,RY142,Contract Payments,0020,Surveyors Fees,12/05/2014,383596,280,CAP,Rex Bishop & Son Demolition,59058K
Gloucester City Council,23UE,Emergency Out Of Hours Calls,RB301,Fees For Services Received,5350,Monthly Facility Fee,12/05/2014,383234,226.69,NET,Office Response,09439K
Gloucester City Council,23UE,Green Transport Policy,PJ130,Electric Car Charge,4030,SMART CAR LEASE,12/05/2014,383474,287.35,NET,Daimler Fleet Management,07828N
Gloucester City Council,23UE,Herbert Reception Upgrade,RY201,Contract Payments,0020,North Warehouse,12/05/2014,383605,110,CAP,L Coward & Son Ltd,47989M
Gloucester City Council,23UE,Herbert Reception Upgrade,RY201,Contract Payments,0020,STATIONERY,12/05/2014,383681,463.1,CAP,Lyreco Uk Ltd,11746G
Gloucester City Council,23UE,Homelessness Prevention,CH122,Fees For Services Received,5350,REDACTED,12/05/2014,383795,100,NET,REDACTED,REDACTED
Gloucester City Council,23UE,Investment Property,RB500,Door Entry Systems Maint,3064,Gloucester Museum,12/05/2014,383611,115,NET,Pro Door Ltd,04760C
Gloucester City Council,23UE,National Express,LT105,Materials For Sale,5080,NATIONAL EXPRESS LTD,12/05/2014,383631,13627.25,NET,National Express Ltd,31455K
Gloucester City Council,23UE,National Express,LT105,Sale Of Goods And Services,9230,NATIONAL EXPRESS LTD,12/05/2014,383631,-1313.2,NET,National Express Ltd,31455K
Gloucester City Council,23UE,Off Street Car Parks,PP110,Pcn Charges,9450,Parking Refund,12/05/2014,383792,25,NET,REDACTED,REDACTED
Gloucester City Council,23UE,Postal Services,RS120,Postages,5400,ACCT 0252446000 W/E 01/05/14,12/05/2014,383753,1627.1,NET,Royal Mail S.Wales & South West,35830S
Gloucester City Council,23UE,Postal Services,RS120,Postages,5400,Post,12/05/2014,383240,1421.64,NET,Royal Mail S.Wales & South West,35830S
Gloucester City Council,23UE,Printing,RP103,Printing,5300,Printing work - April 2014,12/05/2014,383292,819,NET,Alpha Colour Printers Ltd,00945B
Gloucester City Council,23UE,Registration Of Electors,RS400,Printing,5300,Final reminder canvass 2013,12/05/2014,378252,76.62,NET,Alpha Response Print & Mail Ltd,03029U
Gloucester City Council,23UE,Stationery Services,RS150,Stationery,5302,STATIONERY,12/05/2014,383665,6.23,NET,Lyreco Uk Ltd,11746G
Gloucester City Council,23UE,Stationery Services,RS150,Stationery,5302,STATIONERY,12/05/2014,383682,108.04,NET,Lyreco Uk Ltd,11746G
Gloucester City Council,23UE,Stationery Services,RS150,Stationery,5302,STATIONERY,12/05/2014,383683,0.96,NET,Lyreco Uk Ltd,11746G
Gloucester City Council,23UE,Stationery Services,RS150,Stationery,5302,STATIONERY,12/05/2014,383684,5.08,NET,Lyreco Uk Ltd,11746G
Gloucester City Council,23UE,Theatre Tokens,LT106,Materials For Sale,5080,SALES APR 2014,12/05/2014,383746,115,NET,Society Of London Theatre,05656Z
Gloucester City Council,23UE,Theatre Tokens,LT106,Sale Of Goods And Services,9230,SALES APR 2014,12/05/2014,383746,-5.75,NET,Society Of London Theatre,05656Z
Gloucester City Council,23UE,Tic Trading,LT110,Materials For Sale,5080,BOOKMARKS,12/05/2014,383698,190,NET,R C Brady & Company,49543R
Gloucester City Council,23UE,Tic Trading,LT110,Materials For Sale,5080,CREDITED ON 100164,12/05/2014,383697,280.5,NET,R C Brady & Company,49543R
Gloucester City Council,23UE,Tic Trading,LT110,Publications For Sale,5064,MAPS,12/05/2014,383715,49.5,NET,Darien-Jones Publishing,04497U
Gloucester City Council,23UE,Tourism Marketing,LT100,Printing,5300,Printing work - April 2014,12/05/2014,383292,376,NET,Alpha Colour Printers Ltd,00945B
Gloucester City Council,23UE,Tourism Marketing,LT100,Uniforms,5201,CLOTHING,12/05/2014,383717,137.33,NET,Simon Jersey Ltd,40555W
Gloucester City Council,23UE,Wake Room,HC501,Catering Provisions -Liquor,5111,Arbor: various drink,12/05/2014,382109,822.05,NET,Cellar Supplies Cheltenham Ltd,01563L
Gloucester City Council,23UE,Workshops & Exhibitions,LA204,Hire Of Equipment,5020,Function Room Hire,12/05/2014,383622,62.5,NET,The New County Hotel,48928Z
Gloucester City Council,23UE,Workshops & Exhibitions,LA204,Hire Of Equipment,5020,Function Room Hire 04/06/2014,12/05/2014,383624,62.5,NET,The New County Hotel,48928Z
Gloucester City Council,23UE,Workshops & Exhibitions,LA204,Hire Of Equipment,5020,Function Room Hire 11/06/14,12/05/2014,383623,62.5,NET,The New County Hotel,48928Z
Gloucester City Council,23UE,Youth Grant 2011/12,FP107,Funding Vol&Com Grps-Grants,7100C,SATURDAY STARZ GRANT,12/05/2014,383728,2500,NET,Glo-Active,12365P
Gloucester City Council,23UE,Youth Grant 2011/12,FP107,Funding Vol&Com Grps-Grants,7100C,YOUTH GRANT 2014-15,12/05/2014,383725,1940,NET,Glo-Active,12365P
Gloucester City Council,23UE,Youth Grant 2011/12,FP107,Funding Vol&Com Grps-Grants,7100C,YOUTH GRANT 2014-15,12/05/2014,383726,1000,NET,Gloucestershire Chinese Resource Centre,11643U
Gloucester City Council,23UE,Youth Grant 2011/12,FP107,Funding Vol&Com Grps-Grants,7100C,YOUTH GRANT 2014-15,12/05/2014,383727,2500,NET,Churches For Change,14084G
Gloucester City Council,23UE,Youth Grant 2011/12,FP107,Funding Vol&Com Grps-Grants,7100C,YOUTH GRANT 2014-15,12/05/2014,383729,2440,NET,Together In Matson,53760RV
Gloucester City Council,23UE,Youth Grant 2011/12,FP107,Funding Vol&Com Grps-Grants,7100C,YOUTH GRANT 2014-15,12/05/2014,383730,2500,NET,Young Gloucestershire,49448K
Gloucester City Council,23UE,Youth Grant 2011/12,FP107,Funding Vol&Com Grps-Grants,7100C,YOUTH GRANT 2014-15,12/05/2014,383731,2500,NET,St John Ambulance,75562RV
Gloucester City Council,23UE,Youth Grant 2011/12,FP107,Funding Vol&Com Grps-Grants,7100C,YOUTH GRANT 2014-15,12/05/2014,383732,2500,NET,Gloucestershire Bike Project,12778H
Gloucester City Council,23UE,Youth Grant 2011/12,FP107,Funding Vol&Com Grps-Grants,7100C,YOUTH GRANT 2014-15,12/05/2014,383733,1700,NET,Friendship Cafe,59375U
Gloucester City Council,23UE,Youth Grant 2011/12,FP107,Funding Vol&Com Grps-Grants,7100C,YOUTH GRANT 2014-15,12/05/2014,383735,2500,NET,Furniture Recycling Project,51707U
Gloucester City Council,23UE,Youth Grant 2011/12,FP107,Funding Vol&Com Grps-Grants,7100C,YOUTH GRANT 2014-15,12/05/2014,383736,2500,NET,Gloucester Blazers Wheelchair Basketball Club,53341W
Gloucester City Council,23UE,Youth Grant 2011/12,FP107,Funding Vol&Com Grps-Grants,7100C,YOUTH GRANT 2014-15,12/05/2014,383737,2125,NET,Gloucester Fm,56154T
Gloucester City Council,23UE,Youth Grant 2011/12,FP107,Funding Vol&Com Grps-Grants,7100C,YOUTH GRANT 2014-15,12/05/2014,383738,2251,NET,The Venture: White City,10402E
Gloucester City Council,23UE,Youth Grant 2011/12,FP107,Funding Vol&Com Grps-Grants,7100C,YOUTH GRANT 2014-15,12/05/2014,383740,2410,NET,My:Uk,10755R
Gloucester City Council,23UE,Aspire Admin Charges,LC105,Other Minor Income,9900,BAILIFF PAYMENTS,13/05/2014,383882,7.2,NET,Aspire Sports & Cultural Trust,08135V
Gloucester City Council,23UE,Blackfriars,LA609,Cleaning Materials,3600,Cleaning for floor at Blackfriars,13/05/2014,382845,100,NET,Gloucester Cleaning Service,17896B
Gloucester City Council,23UE,Business Transformation & Tech,RT700,Computer Consumables,5422,Leads,13/05/2014,383532,63.9,NET,Communication Networking Systems Ltd,04422C
Gloucester City Council,23UE,Business Transformation & Tech,RT700,Computer Hardware <5000,5420,Dell Supplies,13/05/2014,383627,841.08,NET,Dell Computers Corporation Ltd,55920C
Gloucester City Council,23UE,Cemeteries,HC300,General Repair/Maint Buildings,3000,Tredworth Cemetery,13/05/2014,383612,275,NET,Pro Door Ltd,04760C
Gloucester City Council,23UE,Contact Centre,RB300,Basic Pay -Admin /Prof Staff,2601,STAFF W/E 02/05/14,13/05/2014,383747,435.58,NET,One To One Recruitment,04752H
Gloucester City Council,23UE,Council Streetcare Team,HI101,Window Cleaning,3610,"Viewing Chamber, Eastgate Street",13/05/2014,383601,130,NET,Poles Apart Window Cleaning,11636R
Gloucester City Council,23UE,Gloucester Guildhall,LA100,Cleaning Materials,3600,Guildhall: window cleaning,13/05/2014,381912,40,NET,Gloucester Cleaning Service,17896B
Gloucester City Council,23UE,REDACTED,REDACTED,REDACTED,REDACTED,REDACTED,13/05/2014,REDACTED,117.25,NET,REDACTED,REDACTED
Gloucester City Council,23UE,REDACTED,REDACTED,REDACTED,REDACTED,REDACTED,13/05/2014,REDACTED,201.1,NET,REDACTED,REDACTED
Gloucester City Council,23UE,Homelessness,CH120,Rent In Advance,5516,Rent in Advance & Deposit,13/05/2014,383912,364.6,NET,Donaldson & Newman Ltd,66678G
Gloucester City Council,23UE,Homelessness,CH120,Rent In Advance,5516,Rent in Advance & Deposit,13/05/2014,383913,484.6,NET,Surelet,06858N
Gloucester City Council,23UE,Homelessness Prevention,CH122,Fees For Services Received,5350,Rent in Advance & Deposit,13/05/2014,383912,300,NET,Donaldson & Newman Ltd,66678G
Gloucester City Council,23UE,Homelessness Prevention,CH122,Fees For Services Received,5350,Rent in Advance & Deposit,13/05/2014,383913,500,NET,Surelet,06858N
Gloucester City Council,23UE,Investment Property,RB500,Fire Alarm Maintenance,3053,engineer attend intruder alam 13/3/14,13/05/2014,382094,34,NET,Adt Fire & Security Plc,54086D
Gloucester City Council,23UE,Legal Services,RS200,Basic Pay - Temporary Staff,2751,REDACTED,13/05/2014,383603,395.1,NET,Premiere Employment Ltd,55468Z
Gloucester City Council,23UE,Off Street Car Parks,PP110,Pcn Charges,9450,REDACTED,13/05/2014,383366,25,NET,REDACTED,REDACTED
Gloucester City Council,23UE,Bus Station,RB400,Water Supply,3400,ACCT 7890105225,14/05/2014,383924,163.17,NET,Severn Trent Water,01823H
Gloucester City Council,23UE,Client Revs & Bens Contract,RT240,Bailiffs Fees,5368,VAT on statutory fees,14/05/2014,383539,12.94,NET,Bristow & Sutor,05450M
Gloucester City Council,23UE,Client Revs & Bens Contract,RT240,Bailiffs Fees,5368,VAT on Statutory Fees,14/05/2014,383538,0,NET,Bristow & Sutor,05450M
Gloucester City Council,23UE,Community Safety Projects,FP500,Basic Pay -Admin /Prof Staff,2601,REDACTED,14/05/2014,383626,427.43,NET,Travail Employment Ltd,49371W
Gloucester City Council,23UE,Crematorium,HC200,Water Supply,3400,ACCT 7890105225,14/05/2014,383924,36.35,NET,Severn Trent Water,01823H
Gloucester City Council,23UE,"Cricket,3 Choirs,Cathedral",LA612,Sports Grants,7114,grant support for 2014/15,14/05/2014,383946,7000,NET,Gloucester City Afc (1980) Ltd,13368Y
Gloucester City Council,23UE,Docks Complex - Services,RB100,Cleaning Materials,3600,CLEANING GOODS,14/05/2014,383678,32.24,NET,Core Hygiene Ltd,03885P
Gloucester City Council,23UE,Docks Complex - Services,RB100,Fire Alarm Maintenance,3053,Herbert w/h fire alarm works,14/05/2014,383127,188.5,NET,Adt Fire & Security Plc,54086D
Gloucester City Council,23UE,Employers Pension Contribs,ZR355,Pension Contribs Incl Backf,2901,LGPS,14/05/2014,383757,26378.78,NET,Gloucestershire County Council,10614L
Gloucester City Council,23UE,Financial Services,RT200,Subscriptions,5600,Finance: CIPFA Finance advisory network,14/05/2014,383294,4065,NET,Cipfa Business Limited,09260F
Gloucester City Council,23UE,Guildhall Bar And Caf�,LA210,Catering Provisions -Food,5110,Food,14/05/2014,384004,180.72,NET,Woodward Foodservice,10714F
Gloucester City Council,23UE,Guildhall Bar And Caf�,LA210,Catering Provisions -Food,5110,Food,14/05/2014,384005,165.51,NET,Woodward Foodservice,10714F
Gloucester City Council,23UE,Homelessness,CH120,Rent In Advance,5516,REDACTED,14/05/2014,383590,484.6,NET,REDACTED,REDACTED
Gloucester City Council,23UE,Homelessness,CH120,Rent In Advance,5516,Rent in Advance,14/05/2014,384015,484.6,NET,REDACTED,REDACTED
Gloucester City Council,23UE,Homelessness,CH120,Rent In Advance,5516,Rent in Advance,14/05/2014,384016,484.6,NET,Carib Developments Ltd,12909T
Gloucester City Council,23UE,Homelessness,CH120,Rent In Advance,5516,Rent in Advance,14/05/2014,384018,582.68,NET,REDACTED,REDACTED
Gloucester City Council,23UE,Homelessness Prevention,CH122,Fees For Services Received,5350,REDACTED,14/05/2014,383590,500,NET,REDACTED,REDACTED
Gloucester City Council,23UE,Homelessness Prevention,CH122,Fees For Services Received,5350,Rent in Advance,14/05/2014,384015,500,NET,REDACTED,REDACTED
Gloucester City Council,23UE,Homelessness Prevention,CH122,Fees For Services Received,5350,Rent in Advance,14/05/2014,384018,600,NET,REDACTED,REDACTED
Gloucester City Council,23UE,Investment Property,RB500,Fire Alarm Maintenance,3053,Crem intruder alarm 21/2/14,14/05/2014,382093,56,NET,Adt Fire & Security Plc,54086D
Gloucester City Council,23UE,Investment Property,RB500,Water Supply,3400,ACCT 7890105225,14/05/2014,383924,290.71,NET,Severn Trent Water,01823H
Gloucester City Council,23UE,Mandatory Rent Allowances,DD100,Rent Allowances - Normal Payts,7200,Rent in Advance,14/05/2014,384016,500,NET,Carib Developments Ltd,12909T
Gloucester City Council,23UE,Nms Contract,HI102,Contracted Services,6970,1/12th May 2014,14/05/2014,383533,508825.75,NET,Enterprise (Aol) Ltd,06695G
Gloucester City Council,23UE,Nms Contract,HI102,Water Supply,3400,ACCT 7890105225,14/05/2014,383924,100.26,NET,Severn Trent Water,01823H
Gloucester City Council,23UE,Off Street Car Parks,PP110,Water Supply,3400,ACCT 7890105225,14/05/2014,383924,1859.3,NET,Severn Trent Water,01823H
Gloucester City Council,23UE,Postal Services,RS120,Postages,5400,Post,14/05/2014,382707,1752.92,NET,Royal Mail S.Wales & South West,35830S
Gloucester City Council,23UE,Rehousing,CH111,Basic Pay - Temporary Staff,2751,REDACTED,14/05/2014,383759,427.75,NET,One To One Recruitment,04752H
Gloucester City Council,23UE,Rehousing,CH111,Basic Pay - Temporary Staff,2751,REDACTED,14/05/2014,383349,451.25,NET,Building Recruitment Company Ltd,55385E
Gloucester City Council,23UE,Safer Stronger Communities,FP841,Other Minor Supplies Services,5590,Cable Tie Blk Nyon,14/05/2014,383320,28.28,NET,Edmundson Electrical Ltd*,13990Y
Gloucester City Council,23UE,Utilities,PT502,Electricity Supply,3110,ASPIRE ELECTRICITY,14/05/2014,383223,55993.81,NET,West Mercia Energy,11669Z
Gloucester City Council,23UE,Business Transformation & Tech,RT700,Basic Pay - Temporary Staff,2751,Consultancy Services,15/05/2014,383911,600,NET,Ffox Software Ltd,10665T
Gloucester City Council,23UE,Business Transformation & Tech,RT700,Computer Software Maintenance,5427,Subscription 2014,15/05/2014,383983,5405,NET,Excitech Ltd,09105V
Gloucester City Council,23UE,City Museum Catering,LM202,Catering Provisions -Liquor,5111,Food,15/05/2014,383988,75.55,NET,Woody's Fruit & Veg,11798L
Gloucester City Council,23UE,City Museum Catering,LM202,Catering Provisions -Liquor,5111,Liquor,15/05/2014,383896,156.36,NET,Cellar Supplies Cheltenham Ltd,01563L
Gloucester City Council,23UE,Civica Contract Revs & Bens,RT250,Contracted Services,6970,Pension Excess Reclaim,15/05/2014,383598,12369.1,NET,Civica Uk Ltd,10841X
Gloucester City Council,23UE,Client Revs & Bens Contract,RT240,Bailiffs Fees,5368,VAT on fees collected,15/05/2014,383889,0,NET,Phoenix Commercial Collections Ltd,13435J
Gloucester City Council,23UE,Client Revs & Bens Contract,RT240,Bailiffs Fees,5368,VAT on statutory fees,15/05/2014,383908,74.5,NET,Bristow & Sutor,05450M
Gloucester City Council,23UE,Client Revs & Bens Contract,RT240,Bailiffs Fees,5368,VAT on statutory fees,15/05/2014,383910,0,NET,Bristow & Sutor,05450M
Gloucester City Council,23UE,Client Revs & Bens Contract,RT240,Bailiffs Fees,5368,VAT on Statutory Fees,15/05/2014,383909,0,NET,Bristow & Sutor,05450M
Gloucester City Council,23UE,Contact Centre,RB300,Subscriptions,5600,Member Renewal,15/05/2014,383970,5000,NET,Institute Of Customer Service,03321V
Gloucester City Council,23UE,Docks Complex - Services,RB100,General Repair/Maint Buildings,3000,WC Floor Repairs,15/05/2014,384010,200,NET,Pj Engineering Consultants Ltd,14428W
Gloucester City Council,23UE,Docks Complex - Services,RB100,Lift Maintenance,3051,Herbert Warehouse,15/05/2014,383999,76.58,NET,Pickerings Europe Ltd*,58816U
Gloucester City Council,23UE,Docks Complex - Services,RB100,Repair/Maint Of Fixed Plant,3006,New Actuator Valve,15/05/2014,384011,468,NET,Pj Engineering Consultants Ltd,14428W
Gloucester City Council,23UE,Eastgate Rooftop Emerg Works,RY159,Contract Payments,0020,Eastgate shopping centre: 18/3,15/05/2014,382391,1065.1,CAP,Durrant Consulting Ltd,14583G
Gloucester City Council,23UE,Electrical Investigatory Works,RY142,Contract Payments,0020,New Distribution Boards,15/05/2014,384012,2716.87,CAP,Pj Engineering Consultants Ltd,14428W
Gloucester City Council,23UE,General Drainage Works,PY241,Contract Payments,0020,Langate House Works,15/05/2014,384006,500,CAP,Mr M G Horton T/A H&T Property Maintenance,09210X
Gloucester City Council,23UE,Guildhall Bar And Caf�,LA210,Basic Pay - Duty Assistants,1511,Food,15/05/2014,383987,135.87,NET,Woody's Fruit & Veg,11798L
Gloucester City Council,23UE,Guildhall Bar And Caf�,LA210,Catering Provisions -Food,5110,Food,15/05/2014,383897,4.96,NET,Total Produce Gloucester,12645E
Gloucester City Council,23UE,Guildhall Bar And Caf�,LA210,Catering Provisions -Food,5110,Food,15/05/2014,383898,4.96,NET,Total Produce Gloucester,12645E
Gloucester City Council,23UE,Guildhall Bar And Caf�,LA210,Catering Provisions -Food,5110,Food,15/05/2014,383899,4.96,NET,Total Produce Gloucester,12645E
Gloucester City Council,23UE,Guildhall Bar And Caf�,LA210,Catering Provisions -Food,5110,Food,15/05/2014,383900,4.96,NET,Total Produce Gloucester,12645E
Gloucester City Council,23UE,Guildhall Bar And Caf�,LA210,Catering Provisions -Food,5110,Food,15/05/2014,383901,4.96,NET,Total Produce Gloucester,12645E
Gloucester City Council,23UE,Guildhall Bar And Caf�,LA210,Catering Provisions -Food,5110,Food,15/05/2014,383902,4.96,NET,Total Produce Gloucester,12645E
Gloucester City Council,23UE,Guildhall Bar And Caf�,LA210,Catering Provisions -Food,5110,Food,15/05/2014,383903,4.96,NET,Total Produce Gloucester,12645E
Gloucester City Council,23UE,Guildhall Bar And Caf�,LA210,Catering Provisions -Food,5110,Food,15/05/2014,383904,4.96,NET,Total Produce Gloucester,12645E
Gloucester City Council,23UE,Guildhall Bar And Caf�,LA210,Catering Provisions -Liquor,5111,Liquor,15/05/2014,383894,1246.89,NET,Cellar Supplies Cheltenham Ltd,01563L
Gloucester City Council,23UE,Guildhall Bar And Caf�,LA210,Catering Provisions -Liquor,5111,Liquor,15/05/2014,383895,160.05,NET,Cellar Supplies Cheltenham Ltd,01563L
Gloucester City Council,23UE,REDACTED,REDACTED,REDACTED,REDACTED,REDACTED,15/05/2014,REDACTED,1139,NET,REDACTED,REDACTED
Gloucester City Council,23UE,REDACTED,REDACTED,REDACTED,REDACTED,REDACTED,15/05/2014,REDACTED,100,NET,REDACTED,REDACTED
Gloucester City Council,23UE,Hackney Carriages,HL100,Fees For Services Received,5350,DVLA Electronic Check,15/05/2014,383885,21.75,NET,Intelligent Data Systems (Uk) Ltd,11067G
Gloucester City Council,23UE,Health & Safety,EH110,Other Minor Supplies Services,5590,First Aid Kits,15/05/2014,383551,22.22,NET,Selles Medical Ltd,50592W
Gloucester City Council,23UE,Herbert Reception Upgrade,RY201,Contract Payments,0020,Refurbishment of ground floor reception,15/05/2014,383884,1725,CAP,King Cathery Partnership Ltd,11560Z
Gloucester City Council,23UE,Investment Property,RB500,Lift Maintenance,3051,Gloucester City Museum,15/05/2014,383998,143.65,NET,Pickerings Europe Ltd*,58816U
Gloucester City Council,23UE,Investment Property,RB500,Lift Maintenance,3051,Investigated lift fault- museum,15/05/2014,383996,86.15,NET,Pickerings Europe Ltd*,58816U
Gloucester City Council,23UE,Legal Services,RS200,Basic Pay -Admin /Prof Staff,2601,REDACTED,15/05/2014,383685,1706.25,NET,Michael Page International Recruitment Ltd,06601P
Gloucester City Council,23UE,Licences,HE510,Licensing Act,9303,Refund for Temporary Application,15/05/2014,384068,21,NET,REDACTED,REDACTED
Gloucester City Council,23UE,Nms Contract,HI102,Contracted Services,6970,1/12th April 2014 (pending price review),15/05/2014,382110,508825.75,NET,Enterprise (Aol) Ltd,06695G
Gloucester City Council,23UE,Postal Services,RS120,Postages,5400,Paper,15/05/2014,383975,169.13,NET,Premier Paper Group Ltd,09166Y
Gloucester City Council,23UE,Registration Of Electors,RS400,Postages,5400,Response Services,15/05/2014,383948,90,NET,Royal Mail S.Wales & South West,35830S
Gloucester City Council,23UE,Tic Trading,LT110,Materials For Sale,5080,Food,15/05/2014,383985,168.61,NET,Farrahs Of Harrogate,14360F
Gloucester City Council,23UE,Tic Trading,LT110,Trade Refuse Sacks,5040,Trade Sacks,15/05/2014,383986,1848.8,NET,Enterprise (Aol) Ltd,06695G
Gloucester City Council,23UE,Tourism Marketing,LT100,Misc Fixtures And Fittings,3500,Locks,15/05/2014,383984,59,NET,Algreta Solutions Ltd T/A Catalyst,14725L
Gloucester City Council,23UE,Tree Planting Grant Funded,LY150,Legal/Survey Fees -Land,0002,Tree Planting,15/05/2014,383979,2076,CAP,Enterprise (Aol) Ltd,06695G
Gloucester City Council,23UE,Website Rebuild,RY573,Consultants Fees,0030,06/05/14-09/05/14,15/05/2014,383982,760.2,CAP,Patzone It Solutions Ltd,13059R
Gloucester City Council,23UE,Blackfriars,LA609,Hire Of Equipment,5020,Recycling Bins,16/05/2014,383892,71.38,NET,Enterprise (Aol) Ltd,06695G
Gloucester City Council,23UE,Business Support,PT250,Fuel,4012,Fuel,16/05/2014,383989,86.02,NET,Allstar Business Solutions Ltd (Arval),06594A
Gloucester City Council,23UE,Business Support,PT250,Publications,5060,Citizen Delivery,16/05/2014,383632,181.5,NET,Keelings Newsagents,55281U
Gloucester City Council,23UE,Business Transformation & Tech,RT700,Basic Pay - Temporary Staff,2751,REDACTED,16/05/2014,384149,5232.5,NET,Vector Resourcing Ltd,11664K
Gloucester City Council,23UE,Business Transformation & Tech,RT700,Computer Software Maintenance,5427,Software Licence Update,16/05/2014,384140,1510.22,NET,Oracle Corportation Uk Ltd,06156F
Gloucester City Council,23UE,Civica It Contract,RT270,Contracted Services,6970,Early Works April 2014,16/05/2014,384142,25000,NET,Civica Uk Ltd,10841X
Gloucester City Council,23UE,Civica It Contract,RT270,Contracted Services,6970,Early Works during March 2014,16/05/2014,384145,25000,NET,Civica Uk Ltd,10841X
Gloucester City Council,23UE,Client Revs & Bens Contract,RT240,Court Fees,5358,10% of Collected Court Costs,16/05/2014,384143,24392.57,NET,Civica Uk Ltd,10841X
Gloucester City Council,23UE,Council Streetcare Team,HI101,Maint Of Grounds - General,3030,Spray Japanese Knotweed,16/05/2014,383542,25,NET,Greenfields Garden Services Ltd,48130G
Gloucester City Council,23UE,Docks Complex - Telephones,RB120,Telephones And Fax,5410,Phone Charges,16/05/2014,384001,39,NET,Virgin Media Payments Ltd,09376J
Gloucester City Council,23UE,General Works Fund,RY203,Consultants Fees,0030,REDACTED,16/05/2014,383630,1149.5,CAP,Find The Engineer Recruitment Ltd*,12977Z
Gloucester City Council,23UE,Grants To Voluntary Sector,FG100,Funding Vol&Com Grps-Grants,7100C,Grant payment1 14-15,16/05/2014,383962,1700,NET,Abbeydale Community Association,50263V
Gloucester City Council,23UE,Grants To Voluntary Sector,FG100,Funding Vol&Com Grps-Grants,7100C,Grant Payment1 14-15,16/05/2014,383955,15000,NET,Together In Matson,53760RV
Gloucester City Council,23UE,Grants To Voluntary Sector,FG100,Funding Vol&Com Grps-Grants,7100C,Grant Payment1 14-15,16/05/2014,383963,4000,NET,Rainbow Social Club,14863X
Gloucester City Council,23UE,Grants To Voluntary Sector,FG100,Funding Vol&Com Grps-Grants,7100C,Grant Payment1 14-15,16/05/2014,383964,15000,NET,Gavca,06129J
Gloucester City Council,23UE,Grants To Voluntary Sector,FG100,Funding Vol&Com Grps-Grants,7100C,Grant Payment 14-15,16/05/2014,383956,9910,NET,Play Gloucestershire,06404K
Gloucester City Council,23UE,Grants To Voluntary Sector,FG100,Funding Vol&Com Grps-Grants,7100C,Grant Payment 14-15,16/05/2014,383957,4674,NET,Glos Action For Refugee & Asylum Seekers,14848T
Gloucester City Council,23UE,Grants To Voluntary Sector,FG100,Funding Vol&Com Grps-Grants,7100C,Grant Payment 14-15,16/05/2014,383958,13165,NET,The Friendship Cafe,14853A
Gloucester City Council,23UE,Grants To Voluntary Sector,FG100,Funding Vol&Com Grps-Grants,7100C,Grant Payment 14-15,16/05/2014,383959,14650,NET,Gloucester Fm,56154T
Gloucester City Council,23UE,Grants To Voluntary Sector,FG100,Funding Vol&Com Grps-Grants,7100C,Grant Payment 14-15,16/05/2014,383960,2000,NET,St Hilda's Lunch Club,03586D
Gloucester City Council,23UE,Guildhall Events,REDACTED,REDACTED,REDACTED,REDACTED,16/05/2014,REDACTED,3000,NET,REDACTED,REDACTED
Gloucester City Council,23UE,Guildhall Events,LA200,Fees For Services Received,5350,Months News April,16/05/2014,383907,28.9,NET,W H Smith Ltd,40860M
Gloucester City Council,23UE,Hackney Carriages,HL100,Fees For Services Received,5350,DBS CHECKS,16/05/2014,383688,44,NET,Disclosure And Barring Service,00119W
Gloucester City Council,23UE,Hkp Accomodation Review,RY163,Contract Payments,0020,REDACTED,16/05/2014,383629,627,CAP,Find The Engineer Recruitment Ltd*,12977Z
Gloucester City Council,23UE,Kings Quarter,RY146,Contract Payments,0020,Disconnection to taxi rank kiosk,16/05/2014,384158,821.55,CAP,Western Power Distribution,13058T
Gloucester City Council,23UE,Nms Contract,HI102,Additional Non-Tender Items,6973,Pension Feb 2014,16/05/2014,381326,9236.79,NET,Enterprise (Aol) Ltd,06695G
Gloucester City Council,23UE,Nms Contract,HI102,Contracted Services,6970,Wood Recycling,16/05/2014,383977,729.82,NET,Enterprise (Aol) Ltd,06695G
Gloucester City Council,23UE,Pollution Control,HE300,Fees For Services Received,5350,DUST MONITORING,16/05/2014,383720,113,NET,Dustscan Ltd,03448T
Gloucester City Council,23UE,Pollution Control,HE300,Fees For Services Received,5350,Environ: various goods/serv/mileage,16/05/2014,383286,1049,NET,Dustscan Ltd,03448T
Gloucester City Council,23UE,Printing,RP103,Printing,5300,Print Room Sales April 14,16/05/2014,383604,1051.75,NET,Alpha Colour Printers Ltd,00945B
Gloucester City Council,23UE,Rehousing,CH111,Basic Pay - Temporary Staff,2751,REDACTED,16/05/2014,384000,612.75,NET,Building Recruitment Company Ltd,55385E
Gloucester City Council,23UE,Tic Relocation,GY005,Contract Payments,0020,REDACTED,16/05/2014,383628,655.5,CAP,Find The Engineer Recruitment Ltd*,12977Z
Gloucester City Council,23UE,Tic Theatre Ticket Sales,LT107,Materials For Sale,5080,TIC Ticket Sales 'Where Theres a Will',16/05/2014,384071,66,NET,Kings Theatre,54213X
Gloucester City Council,23UE,Tic Theatre Ticket Sales,LT107,Sale Of Goods And Services,9230,TIC Ticket Sales 'Where Theres a Will',16/05/2014,384071,-5.5,NET,Kings Theatre,54213X
Gloucester City Council,23UE,Aspire Admin Charges,LC105,Contracted Services,6970,Monthly Charge May 2014,19/05/2014,383540,71458.92,NET,Aspire Sports & Cultural Trust,08135V
Gloucester City Council,23UE,Aspire Admin Charges,LC105,Other Minor Income,9900,BAILIFF PAYMENTS,19/05/2014,384191,175.15,NET,Aspire Sports & Cultural Trust,08135V
Gloucester City Council,23UE,Business Support,PT250,Tyres,4014,Car Repairs,19/05/2014,384134,22,NET,Ats Euromaster Ltd,06005E
Gloucester City Council,23UE,Business Transformation & Tech,RT700,Computer Software Maintenance,5427,CMS 10/13-09/14,19/05/2014,383745,9000,NET,Zengenti Ltd,08467P
Gloucester City Council,23UE,City Museum And Art Gallery,LM200,Operational Equipment <5000,5012,Payment for Travel Expenses,19/05/2014,384192,40,NET,REDACTED,REDACTED
Gloucester City Council,23UE,Civil Parking Enforcement,PT741,Basic Pay - Temporary Staff,2751,REDACTED,19/05/2014,383751,1920,NET,Unity Recruitment,14857S
Gloucester City Council,23UE,Civil Parking Enforcement,PT741,Basic Pay - Temporary Staff,2751,REDACTED,19/05/2014,383033,1920,NET,Unity Recruitment,14857S
Gloucester City Council,23UE,Cleansing Services Admin,HI100,Fees For Services Received,5350,Wheatridge Estates,19/05/2014,384120,500,NET,Burges Salmon,51033F
Gloucester City Council,23UE,Client Revs & Bens Contract,RT240,Fees For Services Received,5350,Arrest and detention of defaulters,19/05/2014,384135,99,NET,Assevarate Ltd,11749A
Gloucester City Council,23UE,Council Streetcare Team,HI101,Fees For Services Received,5350,Sebert Street Playarea,19/05/2014,384122,50,NET,Gloucestershire Probation Trust,04614RV
Gloucester City Council,23UE,Disabled Facilities Grants,CY013,Disabled Facility Grants,0074,REDACTED,19/05/2014,384190,6282.8,CAP,Mears Home Improvement Ltd,00096G
Gloucester City Council,23UE,Disabled Facilities Grants,CY013,Disabled Facility Grants,0074,REDACTED,19/05/2014,384189,6227.42,CAP,Mears Home Improvement Ltd,00096G
Gloucester City Council,23UE,Docks Complex - Castlemeads Cp,RB210,Operational Equipment <5000,5012,Unprinted Holder,19/05/2014,384126,29.99,NET,Direct Supply Uk Ltd,58128Z
Gloucester City Council,23UE,Docks Complex - Telephones,RB120,Lease Lines,5411,Call Charges,19/05/2014,384116,3948.11,NET,Gamma Business Communications,10260A
Gloucester City Council,23UE,Docks Complex - Telephones,RB120,Mobile Phones,5409,Phone Bill,19/05/2014,384123,2151.85,NET,Everything Everywhere Ltd (T-Mobile),57543S
Gloucester City Council,23UE,Folk Museum,LM210,Exhibits And Collections,5038,Delivery of Tudor Bed,19/05/2014,384187,970,NET,REDACTED,REDACTED
Gloucester City Council,23UE,Gl1 Emergency Works,RY160,Contract Payments,0020,Release of retention from inv 4660,19/05/2014,381753,495.5,CAP,Hills Construction South West Ltd,13331Y
Gloucester City Council,23UE,Green Transport Policy,PJ130,Ni - Technical Staff,1559,Subscription,19/05/2014,384125,140,NET,Landor Links Ltd,56024H
Gloucester City Council,23UE,REDACTED,REDACTED,REDACTED,REDACTED,REDACTED,19/05/2014,REDACTED,118.93,NET,REDACTED,REDACTED
Gloucester City Council,23UE,REDACTED,REDACTED,REDACTED,REDACTED,REDACTED,19/05/2014,REDACTED,410,NET,REDACTED,REDACTED
Gloucester City Council,23UE,REDACTED,REDACTED,REDACTED,REDACTED,REDACTED,19/05/2014,REDACTED,50,NET,REDACTED,REDACTED
Gloucester City Council,23UE,REDACTED,REDACTED,REDACTED,REDACTED,REDACTED,19/05/2014,REDACTED,250,NET,REDACTED,REDACTED
Gloucester City Council,23UE,REDACTED,REDACTED,REDACTED,REDACTED,REDACTED,19/05/2014,REDACTED,125.81,NET,REDACTED,REDACTED
Gloucester City Council,23UE,REDACTED,REDACTED,REDACTED,REDACTED,REDACTED,19/05/2014,REDACTED,100,NET,REDACTED,REDACTED
Gloucester City Council,23UE,Hmo Licences,HE520,Licences,9301,Refund of HMO Licence,19/05/2014,384188,450,NET,Carbrey Housing Ltd,11098G
Gloucester City Council,23UE,Homelessness,CH120,Fees For Services Received,5350,EMERGENCY PROV 2014/15,19/05/2014,383679,1200,NET,Gloucestershire County Council,18650D
Gloucester City Council,23UE,Homelessness Prevention,CH122,Fees For Services Received,5350,FOR CLIENT COURT FEE,19/05/2014,384202,244.5,NET,REDACTED,REDACTED
Gloucester City Council,23UE,Human Resources,EH100,Employee Related Advertising,2920,ADVERT,19/05/2014,383664,30,NET,Glosjobs.Co.Uk,12799Z
Gloucester City Council,23UE,Human Resources,EH100,Employee Related Advertising,2920,adverts Planning jobsite,19/05/2014,382600,2181,NET,Haymarket Media Group Ltd,56642Y
Gloucester City Council,23UE,Investment Property,RB500,General Repair/Maint Buildings,3000,"Bearland Lodge, 55 Longsmith Street",19/05/2014,383030,174.95,NET,Severnside Security Ltd,14661M
Gloucester City Council,23UE,Kings Quarter,RY146,Legal/Survey Fees -Land,0002,CORRECT CIS,19/05/2014,384270,36044.9,CAP,Wye Valley Demolition Ltd,07242C
Gloucester City Council,23UE,Nms Contract,HI102,Contracted Services,6970,360 Bins,19/05/2014,383976,15329.21,NET,Enterprise (Aol) Ltd,06695G
Gloucester City Council,23UE,Organisational Health,RC160,Fees For Services Received,5350,OH services for March 2014,19/05/2014,382491,825.01,NET,Industrial Medical & Safety Services Ltd,10668L
Gloucester City Council,23UE,Allotments,HI104,Fees For Services Received,5350,refund for standpipe repairs,20/05/2014,384278,80,NET,Estcourt Park Allotment Association,05540K
Gloucester City Council,23UE,Blackfriars Priory,RY207,Contract Payments,0020,Invoice raised with wrong amount,20/05/2014,383345,3394.13,CAP,Forbes Group,14400V
Gloucester City Council,23UE,Building Control,PT400,Subscriptions,5600,LABC SERVICE FEE 2014/15,20/05/2014,380614,1925.57,NET,Labc,05276D
Gloucester City Council,23UE,Business Transformation & Tech,RT700,Basic Pay - Temporary Staff,2751,Consultancy Services 16/05/2014,20/05/2014,384215,600,NET,Ffox Software Ltd,10665T
Gloucester City Council,23UE,Business Transformation & Tech,RT700,Computer Consumables,5422,HDMI Cables,20/05/2014,384235,24,NET,Qual Technology,56512N
Gloucester City Council,23UE,Business Transformation & Tech,RT700,Computer Consumables,5422,Mains Plug lead splitters,20/05/2014,384234,89.5,NET,Qual Technology,56512N
Gloucester City Council,23UE,Business Transformation & Tech,RT700,Computer Hardware <5000,5420,1GB Kit,20/05/2014,384236,1212.5,NET,Qual Technology,56512N
Gloucester City Council,23UE,Business Transformation & Tech,RT700,Computer Hardware <5000,5420,Iiyama prolite,20/05/2014,384233,1485,NET,Qual Technology,56512N
Gloucester City Council,23UE,Business Transformation & Tech,RT700,Computer Software Maintenance,5427,Moderngov Support Fee 14/15,20/05/2014,384193,6870,NET,Modern Mindset Ltd,11065J
Gloucester City Council,23UE,Business Transformation & Tech,RT700,Computer Software Maintenance,5427,Premier Plus package,20/05/2014,384212,12500,NET,Microsoft Ltd,14425C
Gloucester City Council,23UE,Cemeteries,HC300,Basic Pay - Cleaners,2401,REDACTED,20/05/2014,384205,4.3,NET,A T S Euromaster Ltd,01860B
Gloucester City Council,23UE,Cemeteries,HC300,Maint Of Grounds - General,3030,Ply Wood,20/05/2014,384238,337.78,NET,Millington & Ramstedt Ltd,29815S
Gloucester City Council,23UE,Cemeteries,HC300,Major R And M - Vehicles,4010,Two Stroke Oil,20/05/2014,384204,175.2,NET,Spaldings,48759Y
Gloucester City Council,23UE,Civil Parking Enforcement,PT741,Pcn Charges,9450,REDACTED,20/05/2014,383367,70,NET,Standard Logistics,14887G
Gloucester City Council,23UE,Council Streetcare Team,HI101,Maint Of Grounds - General,3030,Plants for Blackfriars,20/05/2014,384146,515,NET,Ae Bishop T/A Evergreen Nurseries,14604A
Gloucester City Council,23UE,Crematorium,HC200,Fertilisers,3029,Standard Roses,20/05/2014,383891,69.97,NET,Highfield Garden Centres Ltd,48436C
Gloucester City Council,23UE,Docks Complex - Services,RB100,Recycling,3631,Recycling,20/05/2014,383616,99.6,NET,Printwaste Recycling,57114W
Gloucester City Council,23UE,Docks Complex - Services,RB100,Recycling,3631,Recycling & Shredding,20/05/2014,383618,81.5,NET,Printwaste Recycling,57114W
Gloucester City Council,23UE,Docks Complex - Telephones,RB120,Telephones And Fax,5410,Call Charges April 14,20/05/2014,384227,2477.34,NET,Gamma Business Communications,10260A
Gloucester City Council,23UE,Economic Development,FP300,Other Minor Supplies Services,5590,Investment Prospectus,20/05/2014,384132,477,NET,Severnprint Ltd,49030C
Gloucester City Council,23UE,Events,LT410,Events,5952,grant Funding for History Festival 14,20/05/2014,384196,25000,NET,Marketing Gloucester Ltd,08925E
Gloucester City Council,23UE,Events,LT410,Events,5952,Grant Funding for The Blues Festival 201,20/05/2014,384195,2000,NET,Marketing Gloucester Ltd,08925E
Gloucester City Council,23UE,External Communications,RC431,Publications,5060,Gloucester City Life 20/06-04/07/14,20/05/2014,384221,2927.11,NET,Smart Distribution Solutions Ltd,12769J
Gloucester City Council,23UE,Financial Services,RT200,Fees For Services Received,5350,Conference Fee,20/05/2014,382512,495,NET,Local Government Association,11683F
Gloucester City Council,23UE,Financial Services,RT200,Fees For Services Received,5350,Herbert: intruder alarm,20/05/2014,381936,503,NET,Avon Alarms Ltd,02280T
Gloucester City Council,23UE,General Works Fund,RY203,Consultants Fees,0030,"Traffic Survey, Fox Elms Road",20/05/2014,384113,140,CAP,Gloucestershire County Council,18650D
Gloucester City Council,23UE,REDACTED,REDACTED,REDACTED,REDACTED,REDACTED,20/05/2014,REDACTED,600,NET,REDACTED,REDACTED
Gloucester City Council,23UE,REDACTED,REDACTED,REDACTED,REDACTED,REDACTED,20/05/2014,REDACTED,50,NET,REDACTED,REDACTED
Gloucester City Council,23UE,REDACTED,REDACTED,REDACTED,REDACTED,REDACTED,20/05/2014,REDACTED,460,NET,REDACTED,REDACTED
Gloucester City Council,23UE,Guildhall Lettings,LA400,Advertising And Publicity,5702,Annual Renewal of Entry,20/05/2014,384199,572,NET,Venue Directory.Com,13843N
Gloucester City Council,23UE,Hmo Licences,HE520,Operational Equipment <5000,5012,Conference 10/04/14,20/05/2014,384209,50,NET,"University Of The West Of England,Bristol",45030S
Gloucester City Council,23UE,Homelessness,CH120,Rent In Advance,5516,REDACTED,20/05/2014,384274,582.68,NET,REDACTED,REDACTED
Gloucester City Council,23UE,Homelessness,CH120,Rent In Advance,5516,REDACTED,20/05/2014,384277,364.6,NET,REDACTED,REDACTED
Gloucester City Council,23UE,Homelessness,CH120,Rent In Advance,5516,REDACTED,20/05/2014,384276,270,NET,REDACTED,REDACTED
Gloucester City Council,23UE,Homelessness Prevention,CH122,Fees For Services Received,5350,REDACTED,20/05/2014,384274,600,NET,REDACTED,REDACTED
Gloucester City Council,23UE,Homelessness Prevention,CH122,Fees For Services Received,5350,REDACTED,20/05/2014,384277,300,NET,REDACTED,REDACTED
Gloucester City Council,23UE,Human Resources,EH100,Fees For Services Received,5350,Childcare Vouchers,20/05/2014,383883,1365.3,NET,Wider Plan Ltd ( Formerly Kiddivouchers),07893B
Gloucester City Council,23UE,Investment Property,RB500,Lift Maintenance,3051,BLACKFRIARS,20/05/2014,383748,38.29,NET,Pickerings Europe Ltd*,58816U
Gloucester City Council,23UE,Land Searches,RO300,Fees For Services Received,5350,Land Charges Q4,20/05/2014,384114,1940,NET,Gloucestershire County Council,18650D
Gloucester City Council,23UE,Northwarehouse,RB150,Lift Maintenance,3051,CALLOUT 14/04/14,20/05/2014,383750,184.46,NET,Schindler Ltd,06826C
Gloucester City Council,23UE,Retail Market - Landlord,HM300,Window Cleaning,3610,Monthly Window Clean,20/05/2014,384220,140,NET,Cornwall Cleaning Services,14050A
Gloucester City Council,23UE,Rugby World Cup,LT450,Clothing,5200,goods for resale,20/05/2014,384279,900,NET,Sportfolio Europe Lp,14456R
Gloucester City Council,23UE,Tourism Marketing,LT100,Uniforms,5201,Embroidery Staff Tops,20/05/2014,384133,64,NET,Hudson & Co,49730P
Gloucester City Council,23UE,Treasury Management,VR110,Bank Charges And Adjustments,5950,LAMAC: Manual postings charge 2013/14,20/05/2014,382490,59.8,NET,Gemini Consultants Ltd,52177U
Gloucester City Council,23UE,Website Rebuild,RY573,Consultants Fees,0030,01/05/14 - 02/05/14,20/05/2014,384194,506.8,CAP,Patzone It Solutions Ltd,13059R
Gloucester City Council,23UE,Homelessness,CH120,Rent In Advance,5516,Rent in Advance,20/05/2014,384017,323.07,NET,Alex Clark Lettings,13439A
Gloucester City Council,23UE,Cems/Crems Admin,HC100,Office Equipment <5000,5010,Ink Cartridges,21/05/2014,384332,27.99,NET,Office Star Group Ltd,55874H
Gloucester City Council,23UE,Chief Executive,RE100,Computer Hardware <5000,5420,in accordance with settlement agreement,21/05/2014,384372,637.91,NET,REDACTED,REDACTED
Gloucester City Council,23UE,Contact Centre,RB300,Basic Pay -Admin /Prof Staff,2601,REDACTED,21/05/2014,384152,350.32,NET,One To One Recruitment,04752H
Gloucester City Council,23UE,Council Streetcare Team,HI101,Advertising And Publicity,5702,Advertisements,21/05/2014,383236,325.36,NET,Local World Ltd,08556P
Gloucester City Council,23UE,Countryside Unit,LP201,Vet Fees,5842,Collection & Disposal,21/05/2014,384334,100,NET,Gordon Gilder Livestock,02518G
Gloucester City Council,23UE,Development Management,PT200,Advertising And Publicity,5702,Advertisements,21/05/2014,383235,92.96,NET,Local World Ltd,08556P
Gloucester City Council,23UE,Development Management,PT200,Advertising And Publicity,5702,Advertisements 01/05/2014,21/05/2014,383536,69.72,NET,Local World Ltd,08556P
Gloucester City Council,23UE,Development Management,PT200,Advertising And Publicity,5702,Advertisements 28/04/2014,21/05/2014,383619,92.96,NET,Local World Ltd,08556P
Gloucester City Council,23UE,Development Management,PT200,Contents Insurance,5700,Advertisements,21/05/2014,382955,232.4,NET,Local World Ltd,08556P
Gloucester City Council,23UE,Development Management,PT200,Microfilming / Cd-Rom Storage,5330,Archival Storage April 14,21/05/2014,384216,22,NET,Transmedia Technology Ltd,08635T
Gloucester City Council,23UE,Docks Complex - Services,RB100,Cleaning Materials,3600,CLEANING GOODS,21/05/2014,383705,47.62,NET,Cleanmy Ltd,06971S
Gloucester City Council,23UE,Guildhall Bar And Caf�,LA210,Catering Provisions -Food,5110,Food,21/05/2014,384348,4.96,NET,Total Produce Gloucester,12645E
Gloucester City Council,23UE,Guildhall Bar And Caf�,LA210,Catering Provisions -Food,5110,Food,21/05/2014,384349,4.96,NET,Total Produce Gloucester,12645E
Gloucester City Council,23UE,Guildhall Bar And Caf�,LA210,Catering Provisions -Food,5110,Food,21/05/2014,384350,4.96,NET,Total Produce Gloucester,12645E
Gloucester City Council,23UE,Guildhall Bar And Caf�,LA210,Catering Provisions -Food,5110,Food,21/05/2014,384351,4.96,NET,Total Produce Gloucester,12645E
Gloucester City Council,23UE,Guildhall Bar And Caf�,LA210,Catering Provisions -Food,5110,Food,21/05/2014,384352,4.96,NET,Total Produce Gloucester,12645E
Gloucester City Council,23UE,Guildhall Bar And Caf�,LA210,Catering Provisions -Food,5110,Food,21/05/2014,384353,4.96,NET,Total Produce Gloucester,12645E
Gloucester City Council,23UE,Guildhall Bar And Caf�,LA210,Catering Provisions -Food,5110,Food,21/05/2014,384354,4.96,NET,Total Produce Gloucester,12645E
Gloucester City Council,23UE,Guildhall Bar And Caf�,LA210,Catering Provisions -Food,5110,Food,21/05/2014,384355,4.96,NET,Total Produce Gloucester,12645E
Gloucester City Council,23UE,Guildhall Bar And Caf�,LA210,Catering Provisions -Food,5110,Food,21/05/2014,384356,4.96,NET,Total Produce Gloucester,12645E
Gloucester City Council,23UE,Guildhall Bar And Caf�,LA210,Catering Provisions -Food,5110,Food,21/05/2014,384357,4.96,NET,Total Produce Gloucester,12645E
Gloucester City Council,23UE,Guildhall Bar And Caf�,LA210,Catering Provisions -Food,5110,Food,21/05/2014,384358,4.96,NET,Total Produce Gloucester,12645E
Gloucester City Council,23UE,Guildhall Bar And Caf�,LA210,Catering Provisions -Food,5110,Food,21/05/2014,384359,4.96,NET,Total Produce Gloucester,12645E
Gloucester City Council,23UE,Guildhall Bar And Caf�,LA210,Catering Provisions -Food,5110,Food,21/05/2014,384360,4.96,NET,Total Produce Gloucester,12645E
Gloucester City Council,23UE,Guildhall Bar And Caf�,LA210,Catering Provisions -Food,5110,Food,21/05/2014,384369,4.96,NET,Total Produce Gloucester,12645E
Gloucester City Council,23UE,Guildhall Bar And Caf�,LA210,Catering Provisions -Liquor,5111,Liquor,21/05/2014,384330,114,NET,Gloucester Brewery,13373F
Gloucester City Council,23UE,Guildhall Bar And Caf�,LA210,Other Catering Provisions,5112,Stock Audit 14-15,21/05/2014,384331,175,NET,Fea Audits,08888J
Gloucester City Council,23UE,REDACTED,REDACTED,REDACTED,REDACTED,REDACTED,21/05/2014,REDACTED,650,NET,REDACTED,REDACTED
Gloucester City Council,23UE,Hempsted Market/Car Boot,HM234,Sewerage And Environ Charges,3402,Standard Units,21/05/2014,384362,455.2,NET,Abbey Loos Limited,10787B
Gloucester City Council,23UE,Homelessness,CH120,Fees For Services Received,5350,Medical Advice to housing department,21/05/2014,384207,70,NET,Now Medical,03468L
Gloucester City Council,23UE,Homelessness,CH120,Rent In Advance,5516,Rent in Advance & Deposit,21/05/2014,384380,190,NET,2 Let Glos Ltd,07066Y
Gloucester City Council,23UE,Homelessness,CH120,Rent In Advance,5516,Rent in Advance & Deposit,21/05/2014,384381,571.15,NET,2 Let Glos Ltd,74622M
Gloucester City Council,23UE,Homelessness Prevention,CH122,Fees For Services Received,5350,Rent in Advance & Deposit,21/05/2014,384380,300,NET,2 Let Glos Ltd,07066Y
Gloucester City Council,23UE,Homelessness Prevention,CH122,Fees For Services Received,5350,Rent in Advance & Deposit,21/05/2014,384381,525,NET,2 Let Glos Ltd,74622M
Gloucester City Council,23UE,Investment Property,RB500,Fees For Services Received,5350,Application for Charging Order,21/05/2014,384373,100,NET,Hmcts,10680X
Gloucester City Council,23UE,Legal Services,RS200,Basic Pay -Admin /Prof Staff,2601,REDACTED,21/05/2014,384211,526.5,NET,Sellick Partnership Group Ltd,11057C
Gloucester City Council,23UE,Legal Services,RS200,Basic Pay - Temporary Staff,2751,REDACTED,21/05/2014,383947,487.29,NET,Premiere Employment Ltd,55468Z
Gloucester City Council,23UE,Legal Services,RS200,Basic Pay - Temporary Staff,2751,REDACTED,21/05/2014,384337,395.1,NET,Premiere Employment Ltd,55468Z
Gloucester City Council,23UE,Legal Services,RS200,Basic Pay - Temporary Staff,2751,REDACTED,21/05/2014,383886,852.53,NET,Venn Group Ltd,04339P
Gloucester City Council,23UE,Legal Services,RS200,Basic Pay - Temporary Staff,2751,REDACTED,21/05/2014,383887,937.78,NET,Venn Group Ltd,04339P
Gloucester City Council,23UE,Marchants,LT108,Materials For Sale,5080,Ticket Sales April 14,21/05/2014,384206,2882.75,NET,Marchants Coaches Ltd,48151Y
Gloucester City Council,23UE,Nms Contract,HI102,Operational Equipment <5000,5012,Refurbished Containers,21/05/2014,384150,2160,NET,Uk Container Maintenance Ltd,11122E
Gloucester City Council,23UE,Off Street Car Parks,PP110,General Repair/Maint Buildings,3000,Pay & Display,21/05/2014,384219,337,NET,Parkeon Ltd,03238G
Gloucester City Council,23UE,Parking Cctv,PT745,Contracted Services,6970,Bus Lane enforcement Aug13-Feb14,21/05/2014,380514,10166,NET,Gloucestershire County Council,18650D
Gloucester City Council,23UE,Rehousing,CH111,Fees For Services Received,5350,Medical Advice to housing department,21/05/2014,384207,125,NET,Now Medical,03468L
Gloucester City Council,23UE,Retail Market - Landlord,HM300,Cleaning / Domestic Equipment,5011,Eastgate Mkt cabinets 1/5/14 to 31/5/14,21/05/2014,383086,18.05,NET,Initial Washroom Solutions,06143R
Gloucester City Council,23UE,Retail Market - Landlord,HM300,Operational Equipment <5000,5012,Rental Period p75s compactor,21/05/2014,384325,280.56,NET,System Rental Uk Ltd,03239E
Gloucester City Council,23UE,Retail Market - Landlord,HM300,Operational Equipment <5000,5012,Service Contract 14-15,21/05/2014,384335,175,NET,R Creed T/A Creed Security,14710A
Gloucester City Council,23UE,Safer Stronger Communities,FP841,Other Minor Supplies Services,5590,Standard Event Toilet,21/05/2014,384214,180,NET,Abbey Loos Limited,10787B
Gloucester City Council,23UE,Tic Theatre Ticket Sales,LT107,Materials For Sale,5080,Ticket Sales 17/05/2014,21/05/2014,384283,455,NET,REDACTED,REDACTED
Gloucester City Council,23UE,Tic Theatre Ticket Sales,LT107,Sale Of Goods And Services,9230,Ticket Sales 17/05/2014,21/05/2014,384283,-37.92,NET,REDACTED,REDACTED
Gloucester City Council,23UE,Training Schemes,ET100,Professional Fees,2980,Certification fees,21/05/2014,384333,6530,NET,The Gold Standard,56141C
Gloucester City Council,23UE,Treasury Management,VR110,Brokerage Fees,5951,BROKERS FEES,21/05/2014,382144,3.29,NET,Martin Brokers (Uk) Plc,51416J
Gloucester City Council,23UE,Website Rebuild,RY573,Consultants Fees,0030,11/05/2014- 16/05/2014,21/05/2014,384328,1267,CAP,Patzone It Solutions Ltd,13059R
Gloucester City Council,23UE,Aspire Admin Charges,LC105,Security Services Fees,5351,Services April 2014,22/05/2014,384124,264.51,NET,G4s Cash Solutions (Uk) Ltd,04290V
Gloucester City Council,23UE,Aspire Admin Charges,LC105,Security Services Fees,5351,Services June 2014,22/05/2014,384222,264.51,NET,G4s Cash Solutions (Uk) Ltd,04290V
Gloucester City Council,23UE,Business Transformation & Tech,RT700,Computer Software Maintenance,5427,Annual Software Support,22/05/2014,384130,1635.93,NET,Northgate Information Solutions Uk Ltd,08982S
Gloucester City Council,23UE,Cems/Crems Admin,HC100,Security Services Fees,5351,Services April 2014,22/05/2014,384124,100.51,NET,G4s Cash Solutions (Uk) Ltd,04290V
Gloucester City Council,23UE,Cems/Crems Admin,HC100,Security Services Fees,5351,Services June 2014,22/05/2014,384222,100.51,NET,G4s Cash Solutions (Uk) Ltd,04290V
Gloucester City Council,23UE,City Museum And Art Gallery,LM200,Security Services Fees,5351,Services April 2014,22/05/2014,384124,88.17,NET,G4s Cash Solutions (Uk) Ltd,04290V
Gloucester City Council,23UE,City Museum And Art Gallery,LM200,Security Services Fees,5351,Services June 2014,22/05/2014,384222,88.17,NET,G4s Cash Solutions (Uk) Ltd,04290V
Gloucester City Council,23UE,Civica Admin Charges,RT105,Postages,5400,Civica Response Services,22/05/2014,383625,250.52,NET,Royal Mail S.Wales & South West,35830S
Gloucester City Council,23UE,Civica Admin Charges,RT105,Postages,5400,Finance Mail,22/05/2014,382170,1556.99,NET,Royal Mail S.Wales & South West,35830S
Gloucester City Council,23UE,Civica Admin Charges,RT105,Postages,5400,Post,22/05/2014,382820,1599.24,NET,Royal Mail S.Wales & South West,35830S
Gloucester City Council,23UE,Civica Admin Charges,RT105,Postages,5400,Post,22/05/2014,383401,1186.08,NET,Royal Mail S.Wales & South West,35830S
Gloucester City Council,23UE,Client Revs & Bens Contract,RT240,Bailiffs Fees,5368,VAT on Statutory Fees,22/05/2014,384213,299.89,NET,Bristow & Sutor,05450M
Gloucester City Council,23UE,Client Revs & Bens Contract,RT240,Security Services Fees,5351,Services April 2014,22/05/2014,384124,263.37,NET,G4s Cash Solutions (Uk) Ltd,04290V
Gloucester City Council,23UE,Client Revs & Bens Contract,RT240,Security Services Fees,5351,Services June 2014,22/05/2014,384222,263.37,NET,G4s Cash Solutions (Uk) Ltd,04290V
Gloucester City Council,23UE,Community Safety Projects,FP500,Basic Pay -Admin /Prof Staff,2601,REDACTED,22/05/2014,383997,419.05,NET,Travail Employment Ltd,49371W
Gloucester City Council,23UE,Contact Centre,RB300,Consultants Fees,5349,Telephone Interpreting,22/05/2014,383974,14.7,NET,Prime Production Ltd,06262F
Gloucester City Council,23UE,Corporate Reporting /Financing,RC504,Miscellaneous Expenses,2952,REDACTED,22/05/2014,384428,9358.21,NET,REDACTED,REDACTED
Gloucester City Council,23UE,Corporate Reporting /Financing,RC504,Miscellaneous Expenses,2952,REDACTED,22/05/2014,384429,22402.99,NET,REDACTED,REDACTED
Gloucester City Council,23UE,Council Streetcare Team,HI101,Operational Equipment <5000,5012,Paints,22/05/2014,384128,72.57,NET,Ppg Architectural Coatings Uk Limited,04709C
Gloucester City Council,23UE,Countryside Unit,LP201,Maint Of Grounds - General,3030,Pipe Liners,22/05/2014,383893,11.25,NET,Countrywide Farmers*,55687J
Gloucester City Council,23UE,Disabled Facilities Grants,CY013,Disabled Facility Grants,0074,REDACTED,22/05/2014,384361,666.35,CAP,Beard & Tandy,03160V
Gloucester City Council,23UE,Docks Complex - Telephones,RB120,Telephones And Fax,5410,Phone Charges,22/05/2014,384002,30,NET,Virgin Media Payments Ltd,09376J
Gloucester City Council,23UE,Docks Complex - Telephones,RB120,Telephones And Fax,5410,Phone Charges,22/05/2014,384224,15.77,NET,Virgin Media Payments Ltd,09376J
Gloucester City Council,23UE,Docks Complex - Telephones,RB120,Telephones And Fax,5410,Phone Charges,22/05/2014,384225,33,NET,Virgin Media Payments Ltd,09376J
Gloucester City Council,23UE,Docks Complex - Telephones,RB120,Telephones And Fax,5410,Phone Charges,22/05/2014,384226,80,NET,Virgin Media Payments Ltd,09376J
Gloucester City Council,23UE,Electrical Investigatory Works,RY142,Contract Payments,0020,Technical Services,22/05/2014,383995,365,CAP,Mss Group,14469F
Gloucester City Council,23UE,Emergency Out Of Hours Calls,RB301,Fees For Services Received,5350,Outbound Calls,22/05/2014,383621,107.35,NET,Office Response,09439K
Gloucester City Council,23UE,Financial Services,RT200,Consultants Fees,5349,REDACTED,22/05/2014,383949,2175,NET,Robert Half Ltd,03959K
Gloucester City Council,23UE,Folk Museum,LM210,Security Services Fees,5351,Services April 2014,22/05/2014,384124,88.17,NET,G4s Cash Solutions (Uk) Ltd,04290V
Gloucester City Council,23UE,Folk Museum,LM210,Security Services Fees,5351,Services June 2014,22/05/2014,384222,88.17,NET,G4s Cash Solutions (Uk) Ltd,04290V
Gloucester City Council,23UE,Gloucester Guildhall,LA100,Security Services Fees,5351,Services April 2014,22/05/2014,384124,88.17,NET,G4s Cash Solutions (Uk) Ltd,04290V
Gloucester City Council,23UE,Gloucester Guildhall,LA100,Security Services Fees,5351,Services June 2014,22/05/2014,384222,88.17,NET,G4s Cash Solutions (Uk) Ltd,04290V
Gloucester City Council,23UE,Herbert Reception Upgrade,RY201,Contract Payments,0020,Reception Refurbishment,22/05/2014,384009,53726.98,CAP,Pj Engineering Consultants Ltd,14428W
Gloucester City Council,23UE,Homelessness,CH120,Rent In Advance,5516,Rent in Advance & Deposit,22/05/2014,384430,484.6,NET,REDACTED,REDACTED
Gloucester City Council,23UE,Homelessness Prevention,CH122,Fees For Services Received,5350,Rent in Advance & Deposit,22/05/2014,384430,500,NET,REDACTED,REDACTED
Gloucester City Council,23UE,Human Resources,EH100,Basic Pay -Admin /Prof Staff,2601,"April fees, Apprenticeship Scheme",22/05/2014,383966,3250,NET,Hr Consulting Ltd,12559Y
Gloucester City Council,23UE,Human Resources,EH100,Fees For Services Received,5350,XpertHR UK Standard,22/05/2014,383379,1018,NET,Reed Business Information,37197A
Gloucester City Council,23UE,Investment Property,RB500,Security Services Fees,5351,Alarm call out 55 Longsmith St,22/05/2014,377739,30,NET,Glevum Security Ltd,03249B
Gloucester City Council,23UE,Nms Contract,HI102,Operational Equipment <5000,5012,Additional kennel fee - for Dec13-Jan14,22/05/2014,382398,2092.5,NET,Enterprise (Aol) Ltd,06695G
Gloucester City Council,23UE,Rehousing,CH111,Basic Pay - Temporary Staff,2751,REDACTED,22/05/2014,384228,617.5,NET,Building Recruitment Company Ltd,55385E
Gloucester City Council,23UE,Tea Room,HC500,Catering Provisions -Food,5110,Food,22/05/2014,383606,183.48,NET,Janes Pantry,24500W
Gloucester City Council,23UE,Tourism Marketing,LT100,Security Services Fees,5351,Services April 2014,22/05/2014,384124,88.17,NET,G4s Cash Solutions (Uk) Ltd,04290V
Gloucester City Council,23UE,Tourism Marketing,LT100,Security Services Fees,5351,Services June 2014,22/05/2014,384222,88.17,NET,G4s Cash Solutions (Uk) Ltd,04290V
Gloucester City Council,23UE,REDACTED,REDACTED,REDACTED,REDACTED,REDACTED,22/05/2014,REDACTED,25.5,NET,REDACTED,REDACTED
Gloucester City Council,23UE,Blackfriars,LA609,Hire Of Equipment,5020,Guildhall: Bins,23/05/2014,382827,123.92,NET,Enterprise (Aol) Ltd,06695G
Gloucester City Council,23UE,Business Support,PT250,Fuel,4012,Fuel,23/05/2014,384218,199.52,NET,Allstar Business Solutions Ltd (Arval),06594A
Gloucester City Council,23UE,Civica Admin Charges,RT105,Postages,5400,Mail,23/05/2014,382169,158.48,NET,Royal Mail S.Wales & South West,35830S
Gloucester City Council,23UE,Countryside Unit,LP201,General Repair/Maint Buildings,3000,Concept Hygiene Unit,23/05/2014,383535,26.52,NET,Ocs Group Uk Limited T/A Cannon,06506A
Gloucester City Council,23UE,Countryside Unit,LP201,Operational Equipment <5000,5012,Countryside: Bird data search,23/05/2014,381738,50,NET,Glos Ornithological Coordinating Committee,14613Z
Gloucester City Council,23UE,Crematorium,HC200,Cleaning Materials,3600,Supply of Disposal Unit,23/05/2014,384107,16.78,NET,Minster Cleaning Services,02158R
Gloucester City Council,23UE,Financial Services,RT200,Basic Pay - Temporary Staff,2751,REDACTED,23/05/2014,383951,547.6,NET,Robert Half Ltd,03959K
Gloucester City Council,23UE,Financial Services,RT200,Basic Pay - Temporary Staff,2751,REDACTED,23/05/2014,383609,557.52,NET,Robert Half Ltd,03959K
Gloucester City Council,23UE,Financial Services,RT200,Consultants Fees,5349,REDACTED,23/05/2014,382810,3975,NET,Robert Half Ltd,03959K
Gloucester City Council,23UE,Financial Services,RT200,Consultants Fees,5349,REDACTED,23/05/2014,383225,3975,NET,Robert Half Ltd,03959K
Gloucester City Council,23UE,Financial Services,RT200,Consultants Fees,5349,REDACTED,23/05/2014,383610,3975,NET,Robert Half Ltd,03959K
Gloucester City Council,23UE,Financial Services,RT200,Consultants Fees,5349,REDACTED,23/05/2014,383950,1740,NET,Robert Half Ltd,03959K
Gloucester City Council,23UE,Folk Museum,LM210,Sewerage And Environ Charges,3402,Folk Museum: sanitary product,23/05/2014,381955,17.16,NET,Ocs Group Uk Limited T/A Cannon,06506A
Gloucester City Council,23UE,Food Safety,HE100,Fees For Services Received,5350,CALIBRATION,23/05/2014,383676,51,NET,Klipspringer,09079U
Gloucester City Council,23UE,Gloucester Guildhall,LA100,Office Equipment <5000,5010,Executive Chair,23/05/2014,384131,39,NET,Furniture@Work Ltd,01124U
Gloucester City Council,23UE,Hempsted Market/Car Boot,HM234,Hire Of Equipment,5020,HIRE MAY 2014,23/05/2014,383667,254.19,NET,Portable Offices (Hire ) Ltd*,06286R
Gloucester City Council,23UE,Herbert Reception Upgrade,RY201,Contract Payments,0020,Reception Refurbishment,23/05/2014,384363,53020,CAP,Pj Engineering Consultants Ltd,14428W
Gloucester City Council,23UE,Human Resources,EH100,Fees For Services Received,5350,County DBS checks FEB14,23/05/2014,381120,46,NET,Gloucestershire County Council,18650D
Gloucester City Council,23UE,Human Resources,EH100,Fees For Services Received,5350,DBS admin charge JAN14,23/05/2014,379349,340,NET,Gloucestershire County Council,18650D
Gloucester City Council,23UE,Human Resources,EH100,Fees For Services Received,5350,DBS admin charge JAN14,23/05/2014,379355,240,NET,Gloucestershire County Council,18650D
Gloucester City Council,23UE,Human Resources,EH100,Fees For Services Received,5350,DBS admin charge JAN14,23/05/2014,379357,304,NET,Gloucestershire County Council,18650D
Gloucester City Council,23UE,Human Resources,EH100,Fees For Services Received,5350,DBS admin charges JAN14,23/05/2014,379350,340,NET,Gloucestershire County Council,18650D
Gloucester City Council,23UE,Human Resources,EH100,Fees For Services Received,5350,DBS admin charges JAN14,23/05/2014,379353,245,NET,Gloucestershire County Council,18650D
Gloucester City Council,23UE,Human Resources,EH100,Fees For Services Received,5350,DBS admin charges JAN14,23/05/2014,379356,281,NET,Gloucestershire County Council,18650D
Gloucester City Council,23UE,Organisational Health,RC160,Fees For Services Received,5350,Occupational Health Serv - Feb 14,23/05/2014,383018,120,NET,Industrial Medical & Safety Services Ltd,10668L
Gloucester City Council,23UE,Planning Policy,PT300,Basic Pay - Temporary Staff,2751,REDACTED,23/05/2014,383954,221.83,NET,Randstad Cpe Ltd,13987L
Gloucester City Council,23UE,Planning Policy,PT300,Basic Pay - Temporary Staff,2751,REDACTED,23/05/2014,383210,1619.85,NET,Randstad Cpe Ltd,13987L
Gloucester City Council,23UE,Planning Policy,PT300,Basic Pay - Temporary Staff,2751,REDACTED,23/05/2014,383213,52.7,NET,Randstad Cpe Ltd,13987L
Gloucester City Council,23UE,Planning Policy,PT300,Basic Pay - Temporary Staff,2751,REDACTED,23/05/2014,382156,1935.33,NET,Randstad Cpe Ltd,13987L
Gloucester City Council,23UE,Rehousing,CH111,Basic Pay - Temporary Staff,2751,REDACTED,23/05/2014,383403,331.88,NET,One To One Recruitment,04752H
Gloucester City Council,23UE,Shopmobility,PE200,Maintenance Of Equipment,5030,Various Repairs,23/05/2014,383967,899.86,NET,Disabled Care & Mobility,12675V
Gloucester City Council,23UE,Summer Festival,LT300,Fees For Services Received,5350,Deposit for stage hire,23/05/2014,384109,400,NET,Ru Electrical Services,10389U
Gloucester City Council,23UE,Treasury Management,VR110,Consultants Fees,5349,treasury retainer contracts,23/05/2014,383617,12000,NET,Sector Treasury Services Ltd,05281L
Gloucester City Council,23UE,Wake Room,HC501,Catering Provisions -Food,5110,arbor: beans etc,23/05/2014,383463,306.65,NET,Caffeica Ltd,11923J
Gloucester City Council,23UE,Business Rent Grant Scheme,FP306,Business Grant,7116,Grant Payment,27/05/2014,384586,1500,NET,REDACTED,REDACTED
Gloucester City Council,23UE,Business Transformation & Tech,RT700,Basic Pay - Temporary Staff,2751,REDACTED,27/05/2014,384533,4198.5,NET,Vector Resourcing Ltd,11664K
Gloucester City Council,23UE,City Museum Catering,LM202,Basic Pay -Duty Managers,1501,Water Boiler,27/05/2014,383972,317.2,NET,Nisbets,55372P
Gloucester City Council,23UE,Civic Admin And Hospitality,RC210,Clothing,5200,Printed Polyester Ties,27/05/2014,384465,159.81,NET,B & M Leisure,14619L
Gloucester City Council,23UE,Client Revs & Bens Contract,RT240,Fees For Services Received,5350,REDACTED,27/05/2014,384485,49.5,NET,Assevarate Ltd,11749A
Gloucester City Council,23UE,Contact Centre,RB300,Basic Pay -Admin /Prof Staff,2601,REDACTED,27/05/2014,384530,808.5,NET,Cps Anystaff Recruitment Ltd,13945D
Gloucester City Council,23UE,Crematorium,HC200,"Seeds, Trees, Plants, Shrubs",3028,Gloucester Crem,27/05/2014,384527,13.8,NET,Aran Turf,56656L
Gloucester City Council,23UE,Depot,PY109,Contract Payments,0020,Depot Eastern Avenue,27/05/2014,384546,4900,CAP,Anderson Civil Engineering Uk Ltd,09083D
Gloucester City Council,23UE,Disabled Facilities Grants,CY013,Renovation Grants,0071,REDACTED,27/05/2014,384537,3557,CAP,Beard & Tandy,03160V
Gloucester City Council,23UE,Financial Services,RT200,Consultants Fees,5349,REDACTED,27/05/2014,384230,3975,NET,Robert Half Ltd,03959K
Gloucester City Council,23UE,Financial Services,RT200,Consultants Fees,5349,REDACTED,27/05/2014,384231,3975,NET,Robert Half Ltd,03959K
Gloucester City Council,23UE,Gloucester Guildhall,LA100,Maintenance Of Equipment,5030,Speaker Stands,27/05/2014,384463,189.2,NET,Studiospares Ltd,59773B
Gloucester City Council,23UE,Green Transport Policy,PJ130,Other Minor Supplies Services,5590,MITCHELLS,27/05/2014,384495,57.4,NET,Mitchells,00037Z
Gloucester City Council,23UE,Hempsted Market/Car Boot,HM234,Security Services Fees,5351,Security Staff April,27/05/2014,384531,1512,NET,Nsgl Ltd,12539E
Gloucester City Council,23UE,Homelessness,CH120,Fees For Services Received,5350,"Invoice: 38, Travelling Expenses",27/05/2014,384585,54.2,NET,REDACTED,REDACTED
Gloucester City Council,23UE,Homelessness,CH120,Rent In Advance,5516,Rent in Advance and Deposit,27/05/2014,384571,260,NET,REDACTED,REDACTED
Gloucester City Council,23UE,Homelessness,CH120,Rent In Advance,5516,REDACTED,27/05/2014,384573,304.2,NET,REDACTED,REDACTED
Gloucester City Council,23UE,Homelessness,CH120,Rent In Advance,5516,REDACTED,27/05/2014,384572,484.6,NET,REDACTED,REDACTED
Gloucester City Council,23UE,Homelessness Prevention,CH122,Fees For Services Received,5350,Rent in Advance and Deposit,27/05/2014,384571,260,NET,REDACTED,REDACTED
Gloucester City Council,23UE,Homelessness Prevention,CH122,Fees For Services Received,5350,REDACTED,27/05/2014,384573,550,NET,REDACTED,REDACTED
Gloucester City Council,23UE,Homelessness Prevention,CH122,Fees For Services Received,5350,REDACTED,27/05/2014,384572,500,NET,REDACTED,REDACTED
Gloucester City Council,23UE,Kings Quarter,RY146,Contract Payments,0020,The Golden Egg,27/05/2014,384494,1800,CAP,Powell Williams Building Consultancy,14189R
Gloucester City Council,23UE,Nms Contract,HI102,General Repair/Maint Buildings,3000,GREEN BOXES,27/05/2014,374105,15383.22,NET,Enterprise (Aol) Ltd,06695G
Gloucester City Council,23UE,Off Street Car Parks,PP110,Pcn Charges,9450,Refund for Cashless Parking,27/05/2014,384574,25,NET,REDACTED,REDACTED
Gloucester City Council,23UE,Pollution Control,HE300,Fees For Services Received,5350,NO2 Tube,27/05/2014,384342,111.15,NET,Gradko International Ltd,11063B
Gloucester City Council,23UE,Postal Services,RS120,Postages,5400,1st Class Window Envelopes,27/05/2014,384515,185.9,NET,Encore Envelopes Ltd,13782H
Gloucester City Council,23UE,Postal Services,RS120,Postages,5400,1st Class Window Envelopes,27/05/2014,384518,110.5,NET,Encore Envelopes Ltd,13782H
Gloucester City Council,23UE,Postal Services,RS120,Postages,5400,2nd Class Non Window Envelopes,27/05/2014,384517,122.52,NET,Encore Envelopes Ltd,13782H
Gloucester City Council,23UE,Postal Services,RS120,Postages,5400,2nd Class Window Envelopes,27/05/2014,384516,193.44,NET,Encore Envelopes Ltd,13782H
Gloucester City Council,23UE,Retail Market - Landlord,HM300,Maint Agreements - Buildings,3010,Maintenance Agreement 14/15,27/05/2014,384541,638,NET,Mitchells (Gloucester) Ltd,30160U
Gloucester City Council,23UE,Rugby World Cup,LT450,Printing,5300,Woven Polyester Ties,27/05/2014,384466,415.49,NET,B & M Leisure,14619L
Gloucester City Council,23UE,Stationery Services,RS150,Printing,5300,Stationary,27/05/2014,384504,4.95,NET,Lyreco Uk Ltd,11746G
Gloucester City Council,23UE,Stationery Services,RS150,Stationery,5302,Inkjet Cartridge,27/05/2014,384500,13.7,NET,Lyreco Uk Ltd,11746G
Gloucester City Council,23UE,Stationery Services,RS150,Stationery,5302,Stationary,27/05/2014,384501,7.65,NET,Lyreco Uk Ltd,11746G
Gloucester City Council,23UE,Statutory Testing,RS310,Display Energy Report,3068,Energy Certificates,27/05/2014,384496,570.5,NET,Rider Levett Bucknall Uk Ltd,06602D
Gloucester City Council,23UE,Swrda Asset Transfer,RY184,Contract Payments,0020,Ladybell Gate 20/05/2014,27/05/2014,384508,150,CAP,Abbey Surfacing,03487G
Gloucester City Council,23UE,Tea Room,HC500,Catering Provisions -Food,5110,Food,27/05/2014,384104,131.52,NET,Janes Pantry,24500W
Gloucester City Council,23UE,Tea Room,HC500,Catering Provisions -Liquor,5111,Liquor,27/05/2014,384481,111.41,NET,Cellar Supplies Cheltenham Ltd,01563L
Gloucester City Council,23UE,Tic Stamp Sales,LT102,Postages,5400,International Postcard Stamp,27/05/2014,384509,174.6,NET,Universal Mail United Kingdom Ltd,14283Y
Gloucester City Council,23UE,Tic Theatre Ticket Sales,LT107,Materials For Sale,5080,Ticket Sales for Carducci Festival May14,27/05/2014,384570,2055,NET,Carducci Music Trust,12940Z
Gloucester City Council,23UE,Tic Theatre Ticket Sales,LT107,Sale Of Goods And Services,9230,Ticket Sales for Carducci Festival May14,27/05/2014,384570,-85.63,NET,Carducci Music Trust,12940Z
Gloucester City Council,23UE,Tic Trading,LT110,Publications For Sale,5064,History Festival,27/05/2014,384507,529.62,NET,David Whyman Map Sales,02653Z
Gloucester City Council,23UE,Tourism Marketing,LT100,Window Cleaning,3610,Window Cleaning Weekly,27/05/2014,384469,30,NET,Initial Washroom Solutions,24219P
Gloucester City Council,23UE,Wake Room,HC501,Catering Provisions -Food,5110,Food,27/05/2014,384471,32.35,NET,Total Produce Gloucester,12645E
Gloucester City Council,23UE,Wake Room,HC501,Catering Provisions -Food,5110,Food,27/05/2014,384472,32.58,NET,Total Produce Gloucester,12645E
Gloucester City Council,23UE,Wake Room,HC501,Catering Provisions -Food,5110,Food,27/05/2014,384473,8.8,NET,Total Produce Gloucester,12645E
Gloucester City Council,23UE,Wake Room,HC501,Catering Provisions -Food,5110,Food,27/05/2014,384474,9.69,NET,Total Produce Gloucester,12645E
Gloucester City Council,23UE,Wake Room,HC501,Catering Provisions -Food,5110,Food,27/05/2014,384475,14.1,NET,Total Produce Gloucester,12645E
Gloucester City Council,23UE,Wake Room,HC501,Catering Provisions -Food,5110,Food,27/05/2014,384476,29.8,NET,Total Produce Gloucester,12645E
Gloucester City Council,23UE,Wake Room,HC501,Catering Provisions -Food,5110,Food,27/05/2014,384477,23.97,NET,Total Produce Gloucester,12645E
Gloucester City Council,23UE,Wake Room,HC501,Catering Provisions -Food,5110,Food,27/05/2014,384479,12.45,NET,3663,55585U
Gloucester City Council,23UE,Wake Room,HC501,Catering Provisions -Food,5110,Food,27/05/2014,384480,225.93,NET,3663,55585U
Gloucester City Council,23UE,Wake Room,HC501,Catering Provisions -Food,5110,Food,27/05/2014,384543,347.48,NET,3663,55585U
Gloucester City Council,23UE,Wake Room,HC501,Catering Provisions -Food,5110,Food,27/05/2014,384545,350.68,NET,3663,55585U
Gloucester City Council,23UE,Wake Room,HC501,Cleaning Materials,3600,Food,27/05/2014,384478,52.53,NET,3663,55585U
Gloucester City Council,23UE,Wake Room,HC501,Cleaning Materials,3600,Food,27/05/2014,384544,56.34,NET,3663,55585U
Gloucester City Council,23UE,Wake Room,HC501,Maint Agreements - Buildings,3010,Arbor: monthly machine warranty,27/05/2014,383120,61.58,NET,Caffeica Ltd,11923J
Gloucester City Council,23UE,Wake Room,HC501,Operational Equipment <5000,5012,Trays,27/05/2014,383973,140.27,NET,Nisbets,55372P
Gloucester City Council,23UE,Asset Management,RS300,Basic Pay - Temporary Staff,2751,REDACTED,28/05/2014,383203,1320.05,NET,Hays Specialist Recruitment Ltd,55516P
Gloucester City Council,23UE,Crematorium,HC200,Cleaning Materials,3600,Hand Towels,28/05/2014,384464,83.8,NET,Safpro Industrial Supply Co,39190W
Gloucester City Council,23UE,Crematorium,HC200,Repair/Maint Of Fixed Plant,3006,Collection of Waste,28/05/2014,384668,1398.19,NET,Facultatieve Technologies Ltd,51210H
Gloucester City Council,23UE,Environmental Planning,LM340,Operational Materials,5070,Conservation work: Severnside Hemspted,28/05/2014,379837,22.5,NET,Gloucester Vale Conservation Volunteers,55761Y
Gloucester City Council,23UE,Financial Services,RT200,Fees For Services Received,5350,DHP processing in 2013/2014,28/05/2014,382775,2045.25,NET,Civica Uk Ltd,10841X
Gloucester City Council,23UE,Glos City Eaep,LM250,Fees For Services Received,5350,Archive Enhancement Project,28/05/2014,384664,2464,NET,Cotswold Archaeology Ltd,09180E
Gloucester City Council,23UE,Gloucester Guildhall,LA100,Fees For Services Received,5350,APR14 TECH SUPPORT,28/05/2014,384693,395,NET,REDACTED,REDACTED
Gloucester City Council,23UE,Herbert Reception Upgrade,RY201,Contract Payments,0020,Ground Floor Refurbishment,28/05/2014,384151,1000,CAP,Rpa,01710Y
Gloucester City Council,23UE,Homelessness,CH120,Rent In Advance,5516,REDACTED,28/05/2014,384692,290.76,NET,The Property Centre,09230R
Gloucester City Council,23UE,Housing Works In Default,HD500,Fees For Services Received,5350,Rubbish Bins,28/05/2014,384505,949.88,NET,Wybone Limited,13540L
Gloucester City Council,23UE,Human Resources,EH100,Employee Related Advertising,2920,Advertisements,28/05/2014,382517,300,NET,This Is Gloucestershire Jobs,14918X
Gloucester City Council,23UE,Pollution Control,HE300,Fees For Services Received,5350,Environ protection: goods,28/05/2014,382944,111.15,NET,Gradko International Ltd,11063B
Gloucester City Council,23UE,Stationery Services,RS150,Stationery,5302,Monitor Riser,28/05/2014,384499,7.14,NET,Lyreco Uk Ltd,11746G
Gloucester City Council,23UE,Stationery Services,RS150,Stationery,5302,Stationary,28/05/2014,384497,25.7,NET,Lyreco Uk Ltd,11746G
Gloucester City Council,23UE,Stationery Services,RS150,Stationery,5302,Stationary,28/05/2014,384498,99.96,NET,Lyreco Uk Ltd,11746G
Gloucester City Council,23UE,Stationery Services,RS150,Stationery,5302,Stationary,28/05/2014,384502,81.69,NET,Lyreco Uk Ltd,11746G
Gloucester City Council,23UE,Stationery Services,RS150,Stationery,5302,Stationary,28/05/2014,384503,85,NET,Lyreco Uk Ltd,11746G
Gloucester City Council,23UE,Tourism Marketing,LT100,Misc Fixtures And Fittings,3500,Missed Delivery Charge Invoice 73236,28/05/2014,384715,7.5,NET,Algreta Solutions Ltd T/A Catalyst,14725L
Gloucester City Council,23UE,Alney Island,PY128,Contract Payments,0020,VU06 VFR,29/05/2014,383686,19550,CAP,Cotswold Farm Machinery Ltd,14329Z
Gloucester City Council,23UE,Asbru - Other Funders,FP846,Other Minor Supplies Services,5590,Payment towards Cutural Fayre,29/05/2014,384731,200,NET,Barton & Tredworth Neighbourhood Partnership,09679L
Gloucester City Council,23UE,Blackfriars,LA609,Advertising And Publicity,5702,Banners & Logos,29/05/2014,384519,138.52,NET,Forbes Group,14400V
Gloucester City Council,23UE,Blackfriars,LA609,Hire Of Equipment,5020,Blackfriars: Lease/rent Handdryer 3mnths,29/05/2014,379219,52.65,NET,Wessex Products (Leasing) Ltd,03684C
Gloucester City Council,23UE,Building Control,PT400,Basic Pay - Temporary Staff,2751,REDACTED,29/05/2014,382471,1155,NET,Brg Interim Solutions,14065L
Gloucester City Council,23UE,Building Control,PT400,Basic Pay - Temporary Staff,2751,REDACTED,29/05/2014,383528,124,NET,Brg Interim Solutions,14065L
Gloucester City Council,23UE,Business Support,PT250,Fuel,4012,Fuel,29/05/2014,384528,458.27,NET,Allstar Business Solutions Ltd (Arval),06594A
Gloucester City Council,23UE,Business Transformation & Tech,RT700,Basic Pay - Temporary Staff,2751,Consultancy Services w/e 23/05/2014,29/05/2014,384639,600,NET,Ffox Software Ltd,10665T
Gloucester City Council,23UE,Cemeteries,HC300,Operational Materials,5070,Building Block Plant,29/05/2014,384655,75,NET,The Columbaria Company,55078T
Gloucester City Council,23UE,Cemeteries,HC300,Routine R And M - Vehicles,4011,Repairs,29/05/2014,384656,45,NET,Garden Machinery Gloucester,55641K
Gloucester City Council,23UE,Civil Parking Enforcement,PT741,Basic Pay - Temporary Staff,2751,REDACTED,29/05/2014,384154,1920,NET,Unity Recruitment,14857S
Gloucester City Council,23UE,Client Revs & Bens Contract,RT240,Bailiffs Fees,5368,Fees paid Direct & VAT on Statutory Fees,29/05/2014,384659,142.57,NET,Bristow & Sutor,05450M
Gloucester City Council,23UE,Client Revs & Bens Contract,RT240,Bailiffs Fees,5368,VAT due on Statutory Fees,29/05/2014,384657,0,NET,Bristow & Sutor,05450M
Gloucester City Council,23UE,Client Revs & Bens Contract,RT240,Bailiffs Fees,5368,VAT due on Statutory Fees,29/05/2014,384658,0,NET,Bristow & Sutor,05450M
Gloucester City Council,23UE,Contact Centre,RB300,Basic Pay -Admin /Prof Staff,2601,REDACTED,29/05/2014,384539,495,NET,Cps Anystaff Recruitment Ltd,13945D
Gloucester City Council,23UE,Contact Centre,RB300,Basic Pay -Admin /Prof Staff,2601,REDACTED,29/05/2014,384538,660,NET,Cps Anystaff Recruitment Ltd,13945D
Gloucester City Council,23UE,Contact Centre,RB300,Basic Pay -Admin /Prof Staff,2601,REDACTED,29/05/2014,384529,660,NET,Cps Anystaff Recruitment Ltd,13945D
Gloucester City Council,23UE,Countryside Unit,LP201,Overtime -Building Maint Staff,1303,Animal Food,29/05/2014,383615,35.79,NET,Countrywide Farmers*,55687J
Gloucester City Council,23UE,Docks Complex - Services,RB100,Cleaning Materials,3600,Cleaning Materials,29/05/2014,384343,49.79,NET,Cleanmy Ltd,06971S
Gloucester City Council,23UE,Guildhall Bar And Caf�,LA210,Catering Provisions -Food,5110,Food,29/05/2014,384102,33.25,NET,Janes Pantry,24500W
Gloucester City Council,23UE,REDACTED,REDACTED,REDACTED,REDACTED,REDACTED,29/05/2014,REDACTED,72,NET,REDACTED,REDACTED
Gloucester City Council,23UE,Hempsted Market/Car Boot,HM234,Maint Of Grounds - General,3030,Hempsted Market,29/05/2014,384652,323.4,NET,REDACTED,REDACTED
Gloucester City Council,23UE,Homelessness,CH120,Board And Lodging,5515,various tenants,29/05/2014,384737,1618.41,NET,James Legge Property (Ltd),07844R
Gloucester City Council,23UE,Homelessness,CH120,Fees For Services Received,5350,REDACTED,29/05/2014,384660,20.5,NET,Rosebank Health,03041E
Gloucester City Council,23UE,Homelessness,CH120,Fees For Services Received,5350,REDACTED,29/05/2014,384649,20.5,NET,Dr P Lush & Partners,05680S
Gloucester City Council,23UE,Postal Services,RS120,Postages,5400,2nd Class Window Envelopes,29/05/2014,384637,451.8,NET,Encore Envelopes Ltd,13782H
Gloucester City Council,23UE,Postal Services,RS120,Postages,5400,Post 02/05 - 15/05/14,29/05/2014,384535,1696.12,NET,Royal Mail S.Wales & South West,35830S
Gloucester City Council,23UE,Retail Market - Landlord,HM300,General Repair/Maint Buildings,3000,Planned Maintenance 13/05/2014,29/05/2014,384650,276,NET,Mitchells (Gloucester) Ltd,30160U
Gloucester City Council,23UE,Safer Stronger Communities,FP841,Other Minor Supplies Services,5590,Cable Ties,29/05/2014,384013,28.3,NET,Walsall,53239M
Gloucester City Council,23UE,Shopmobility,PE200,Cleaning Materials,3600,Cleaning Materials,29/05/2014,384633,35.91,NET,Core Hygiene Ltd,03885P
Gloucester City Council,23UE,Shopmobility,PE200,Office Equipment <5000,5010,repairs to a roller shutter,29/05/2014,383541,60,NET,Severnside Security Ltd,14661M
Gloucester City Council,23UE,Tea Room,HC500,Catering Provisions -Food,5110,Food,29/05/2014,384326,185,NET,Janes Pantry,24500W
Gloucester City Council,23UE,Wake Room,HC501,Catering Provisions -Food,5110,Food,29/05/2014,384326,8.42,NET,Janes Pantry,24500W
Gloucester City Council,23UE,Website Rebuild,RY573,Consultants Fees,0030,14/05/2014 - 23/05/2014,29/05/2014,384653,1267,CAP,Patzone It Solutions Ltd,13059R
Gloucester City Council,23UE,Homelessness,CH120,Rent In Advance,5516,REDACTED,29/05/2014,384275,484.6,NET,REDACTED,REDACTED
Gloucester City Council,23UE,Homelessness Prevention,CH122,Fees For Services Received,5350,REDACTED,29/05/2014,384275,500,NET,REDACTED,REDACTED
Gloucester City Council,23UE,Homelessness,CH120,Rent In Advance,5516,REDACTED,29/05/2014,383593,340,NET,REDACTED,REDACTED
Gloucester City Council,23UE,Building Control,PT400,Application Fees,9312,oVERPAYMENT ON 14/00327/OTHBND,30/05/2014,384859,23.4,NET,REDACTED,REDACTED
Gloucester City Council,23UE,Building Control,PT400,Basic Pay - Temporary Staff,2751,Building control Officer,30/05/2014,382437,2164.25,NET,Brg Interim Solutions,14065L
Gloucester City Council,23UE,Building Control,PT400,Car Allows -Cas. User Mileage,4102,REDACTED,30/05/2014,384493,107.5,NET,Brg Interim Solutions,14065L
Gloucester City Council,23UE,Building Control,PT400,Safety Equipment,5013,Rigger Boots,30/05/2014,383376,47.1,NET,Safpro Industrial Supply Co,39190W
Gloucester City Council,23UE,City Museum And Art Gallery,LM200,Cleaning Materials,3600,Cleaning Materials,30/05/2014,384628,47.31,NET,Gpp Hygiene,06080P
Gloucester City Council,23UE,City Museum And Art Gallery,LM200,Exhibits And Collections,5038,Lyco 28w 2D 4pin Cool White,30/05/2014,384765,68.56,NET,Lyco Direct Limited,51364C
Gloucester City Council,23UE,City Museum And Art Gallery,LM200,Publications For Sale,5064,Finger Puppets,30/05/2014,384777,161.2,NET,The Puppet Company,14242N
Gloucester City Council,23UE,City Museum And Art Gallery,LM200,Publications For Sale,5064,Richard III Books,30/05/2014,384771,1879.14,NET,The History Press Ltd,07144D
Gloucester City Council,23UE,City Museum And Art Gallery,LM200,Publications For Sale,5064,Richard III March 14,30/05/2014,384772,299.7,NET,The History Press Ltd,07144D
Gloucester City Council,23UE,City Museum Catering,LM202,Catering Provisions -Food,5110,Food,30/05/2014,384752,4.96,NET,Total Produce Gloucester,12645E
Gloucester City Council,23UE,City Museum Catering,LM202,Catering Provisions -Food,5110,Food,30/05/2014,384753,6.2,NET,Total Produce Gloucester,12645E
Gloucester City Council,23UE,City Museum Catering,LM202,Catering Provisions -Food,5110,Food,30/05/2014,384754,7.44,NET,Total Produce Gloucester,12645E
Gloucester City Council,23UE,City Museum Catering,LM202,Catering Provisions -Food,5110,Food,30/05/2014,384755,6.2,NET,Total Produce Gloucester,12645E
Gloucester City Council,23UE,City Museum Catering,LM202,Cleaning Materials,3600,Cleaning Materials,30/05/2014,384628,66.11,NET,Gpp Hygiene,06080P
Gloucester City Council,23UE,Civica It Contract,RT270,Contracted Services,6970,IT Services 01/05- 30/06/14,30/05/2014,384491,95833.34,NET,Civica Uk Ltd,10841X
Gloucester City Council,23UE,Financial Services,RT200,Consultants Fees,5349,REDACTED,30/05/2014,384631,3975,NET,Robert Half Ltd,03959K
Gloucester City Council,23UE,Flooding And Drainage,HE306,Maint Of Grounds - General,3030,VULCAN WAY,30/05/2014,379354,100,NET,Three Counties Drain Service,44033V
Gloucester City Council,23UE,Folk Museum,LM210,Cleaning Materials,3600,Cleaning Materials,30/05/2014,384628,13.17,NET,Gpp Hygiene,06080P
Gloucester City Council,23UE,Folk Museum,LM210,Publications For Sale,5064,Finger Puppets,30/05/2014,384777,163.2,NET,The Puppet Company,14242N
Gloucester City Council,23UE,Folk Museum Catering,LM211,Cleaning Materials,3600,Cleaning Materials,30/05/2014,384628,49.11,NET,Gpp Hygiene,06080P
Gloucester City Council,23UE,Grants To Voluntary Sector,FG100,Funding Vol&Com Grps-Grants,7100C,Grant Payment1 14-15,30/05/2014,383961,2225,NET,Glos Bangladeshi Womens Group,14858P
Gloucester City Council,23UE,Group Mgr Planning & Economy,GR101,Basic Pay - Temporary Staff,2751,REDACTED,30/05/2014,383211,1484.59,NET,Randstad Cpe Ltd,13987L
Gloucester City Council,23UE,Group Mgr Planning & Economy,GR101,Basic Pay - Temporary Staff,2751,REDACTED,30/05/2014,382507,2475,NET,Randstad Cpe Ltd,13987L
Gloucester City Council,23UE,Group Mgr Planning & Economy,GR101,Basic Pay - Temporary Staff,2751,REDACTED,30/05/2014,384141,1980,NET,Randstad Cpe Ltd,13987L
Gloucester City Council,23UE,Group Mgr Planning & Economy,GR101,Basic Pay - Temporary Staff,2751,REDACTED,30/05/2014,383212,1980,NET,Randstad Cpe Ltd,13987L
Gloucester City Council,23UE,Group Mgr Planning & Economy,GR101,Basic Pay - Temporary Staff,2751,REDACTED,30/05/2014,383620,1980,NET,Randstad Cpe Ltd,13987L
Gloucester City Council,23UE,Homelessness,CH120,Board And Lodging,5515,various tenants,30/05/2014,384870,90,NET,REDACTED,REDACTED
Gloucester City Council,23UE,Homelessness,CH120,Board And Lodging,5515,various tenants,30/05/2014,384865,775.03,NET,Carbrey Housing Ltd,11098G
Gloucester City Council,23UE,Homelessness,CH120,Board And Lodging,5515,various tenants,30/05/2014,384866,1161.61,NET,Kalmwood Ltd,08568G
Gloucester City Council,23UE,Homelessness,CH120,Board And Lodging,5515,various tenants,30/05/2014,384869,1670.84,NET,Carbrey Housing Ltd,11098G
Gloucester City Council,23UE,Homelessness,CH120,Board And Lodging,5515,various tenants,30/05/2014,384864,3072.57,NET,REDACTED,REDACTED
Gloucester City Council,23UE,Homelessness,CH120,Board And Lodging,5515,various tenants,30/05/2014,384868,1728.69,NET,Dorchester House Trust,12298D
Gloucester City Council,23UE,Homelessness,CH120,Board And Lodging,5515,various tenants,30/05/2014,384867,2082.47,NET,REDACTED,REDACTED
Gloucester City Council,23UE,Homelessness Prevention,CH122,Fees For Services Received,5350,REDACTED,30/05/2014,384858,280,NET,REDACTED,REDACTED
Gloucester City Council,23UE,Investment Property,RB500,Lift Maintenance,3051,Eastgate Markets Lifts Jun- Sept,30/05/2014,384783,284.28,NET,Pickerings Europe Ltd*,58816U
Gloucester City Council,23UE,Retail Market - Landlord,HM300,Window Cleaning,3610,6 Monthly Window Clean May 14,30/05/2014,384651,260,NET,Cornwall Cleaning Services,14050A
Gloucester City Council,23UE,Targeted Historic Grants,GY008,Contract Payments,0020,Work carried out 27/03/14,30/05/2014,384768,4350.5,CAP,Miles Mann Ltd,14565J
Gloucester City Council,23UE,Tea Room,HC500,Other Minor Supplies Services,5590,Flowers,30/05/2014,384779,20.8,NET,Carols Fruit & Flower Basket,01274X
Gloucester City Council,23UE,Tea Room,HC500,Other Minor Supplies Services,5590,Vases & Flowers,30/05/2014,384780,37.8,NET,Carols Fruit & Flower Basket,01274X
Gloucester City Council,23UE,Tourism Marketing,LT100,Vocational Training,2970,Training Course & Expenses,30/05/2014,384761,583.9,NET,Retail Matters,13832J
Gloucester City Council,23UE,Wake Room,HC501,Catering Provisions -Food,5110,Food,30/05/2014,384756,500.36,NET,3663,55585U
Gloucester City Council,23UE,Wake Room,HC501,Catering Provisions -Food,5110,Food,30/05/2014,384757,13.02,NET,Total Produce Gloucester,12645E
Gloucester City Council,23UE,Wake Room,HC501,Catering Provisions -Food,5110,Food,30/05/2014,384758,29.22,NET,Total Produce Gloucester,12645E
Gloucester City Council,23UE,Wake Room,HC501,Catering Provisions -Food,5110,Food,30/05/2014,384759,17.38,NET,Total Produce Gloucester,12645E
Gloucester City Council,23UE,Wake Room,HC501,Catering Provisions -Food,5110,Food,30/05/2014,384760,37.21,NET,Total Produce Gloucester,12645E
Gloucester City Council,23UE,Wake Room,HC501,Cleaning Materials,3600,Food,30/05/2014,384794,75.99,NET,3663,55585U
Gloucester City Council,23UE,Wake Room,HC501,Cleaning Materials,3600,Food,30/05/2014,384795,31.24,NET,3663,55585U
Gloucester City Council,23UE,REDACTED,REDACTED,REDACTED,REDACTED,REDACTED,30/05/2014,REDACTED,25.5,NET,REDACTED,REDACTED
Gloucester City Council,23UE,Homelessness,CH120,Rent In Advance,5516,REDACTED,02/06/2014,384918,484.6,NET,REDACTED,REDACTED
Gloucester City Council,23UE,Homelessness,CH120,Rent In Advance,5516,REDACTED,02/06/2014,384916,484.6,NET,REDACTED,REDACTED
Gloucester City Council,23UE,Homelessness,CH120,Rent In Advance,5516,REDACTED,02/06/2014,384913,484.6,NET,REDACTED,REDACTED
Gloucester City Council,23UE,Homelessness,CH120,Rent In Advance,5516,REDACTED,02/06/2014,384917,576.92,NET,REDACTED,REDACTED
Gloucester City Council,23UE,Homelessness Prevention,CH122,Fees For Services Received,5350,REDACTED,02/06/2014,384918,500,NET,REDACTED,REDACTED
Gloucester City Council,23UE,Homelessness Prevention,CH122,Fees For Services Received,5350,REDACTED,02/06/2014,384916,600,NET,REDACTED,REDACTED
Gloucester City Council,23UE,Mandatory Rent Allowances,DD100,Rent Allowances - Normal Payts,7200,REDACTED,02/06/2014,384913,500,NET,REDACTED,REDACTED
Gloucester City Council,23UE,Mandatory Rent Allowances,DD100,Rent Allowances - Normal Payts,7200,REDACTED,02/06/2014,384917,700,NET,REDACTED,REDACTED
Gloucester City Council,23UE,Youth Grant 2011/12,FP107,Funding Vol&Com Grps-Grants,7100C,YOUTH GRANT 2014-15,02/06/2014,383734,500,NET,Ramblers Youth Club,14730U
Gloucester City Council,23UE,Financial Services,RT200,Fees For Services Received,5350,STATIONERY,,379083,52,NET,Lyreco Uk Ltd,11746G
Gloucester City Council,23UE,St Michaels Tower,GY016,Contract Payments,0020,CDM St Michaels Tower,,381467,675,CAP,Goddard Consulting Llp,10598G
